Workbook

Sheet European Put
A1: Input | D1: Output
A2: Stock price S = | B2: 100 | D2: European Put
A3: Strike price K = | B3: 105 | D3: =Binom(0,0,B2,B3,B4,B5,B6,B7) -> 11.88611135
A4: Maturity T = | B4: 0.5
A5: interest rate r = | B5: 0.03
A6: Volatility vol = | B6: 0.35
A7: Number of steps N = | B7: 12
I8: Smax | J8: =100*EXP(12*0.35*SQRT(0.25)) -> 816.6169913 | M8: Smin | N8: =100*EXP(-12*0.35*SQRT(0.25)) -> 12.24564283
I9: up factor | J9: =EXP(0.35*SQRT(0.25)) -> 1.191246217 | M9: down factor | N9: =EXP(-0.35*SQRT(0.25)) -> 0.8394570208
D16: Smin | AB16: Smax
C17: S T | D17: =E17*$N$9 -> 12.24564283 | E17: =F17*$N$9 -> 14.58757569 | F17: =G17*$N$9 -> 17.37739435 | G17: =H17*$N$9 -> 20.70075527 | H17: =I17*$N$9 -> 24.65969639 | I17: =J17*$N$9 -> 29.37577003 | J17: =K17*$N$9 -> 34.99377491 | K17: =L17*$N$9 -> 41.68620197 | L17: =M17*$N$9 -> 49.65853038 | M17: =N17*$N$9 -> 59.15553644 | N17: =O17*$N$9 -> 70.46880897 | O17: =P17*$N$9 -> 83.94570208 | P17: 100 | Q17: =P17*$J$9 -> 119.1246217 | R17: =Q17*$J$9 -> 141.9067549 | S17: =R17*$J$9 -> 169.0458848 | T17: =S17*$J$9 -> 201.3752707 | U17: =T17*$J$9 -> 239.8875294 | V17: =U17*$J$9 -> 285.7651118 | W17: =V17*$J$9 -> 340.4166083 | X17: =W17*$J$9 -> 405.5199967 | Y17: =X17*$J$9 -> 483.0741618 | Z17: =Y17*$J$9 -> 575.4602676 | AA17: =Z17*$J$9 -> 685.5148666 | AB17: =AA17*$J$9 -> 816.6169913
C18: 0.25 | D18: =Binom(0,0,D$17,$B$3,$C18,$B$5,$B$6,$B$7) -> 91.52821663 | E18: =Binom(0,0,E$17,$B$3,$C18,$B$5,$B$6,$B$7) -> 89.20551301 | F18: =Binom(0,0,F$17,$B$3,$C18,$B$5,$B$6,$B$7) -> 86.43860111 | G18: =Binom(0,0,G$17,$B$3,$C18,$B$5,$B$6,$B$7) -> 83.14252777 | H18: =Binom(0,0,H$17,$B$3,$C18,$B$5,$B$6,$B$7) -> 79.55574936 | I18: =Binom(0,0,I$17,$B$3,$C18,$B$5,$B$6,$B$7) -> 74.83967572 | J18: =Binom(0,0,J$17,$B$3,$C18,$B$5,$B$6,$B$7) -> 69.22167084 | K18: =Binom(0,0,K$17,$B$3,$C18,$B$5,$B$6,$B$7) -> 62.52924379 | L18: =Binom(0,0,L$17,$B$3,$C18,$B$5,$B$6,$B$7) -> 54.55691541 | M18: =Binom(0,0,M$17,$B$3,$C18,$B$5,$B$6,$B$7) -> 45.06053679 | N18: =Binom(0,0,N$17,$B$3,$C18,$B$5,$B$6,$B$7) -> 33.79814518 | O18: =Binom(0,0,O$17,$B$3,$C18,$B$5,$B$6,$B$7) -> 21.10573151 | P18: =Binom(0,0,P$17,$B$3,$C18,$B$5,$B$6,$B$7) -> 9.46238609 | Q18: =Binom(0,0,Q$17,$B$3,$C18,$B$5,$B$6,$B$7) -> 2.511549016 | R18: =Binom(0,0,R$17,$B$3,$C18,$B$5,$B$6,$B$7) -> 0.3094210555 | S18: =Binom(0,0,S$17,$B$3,$C18,$B$5,$B$6,$B$7) -> 0.01188306227 | T18: =Binom(0,0,T$17,$B$3,$C18,$B$5,$B$6,$B$7) -> 3.443442586e-05 | U18: =Binom(0,0,U$17,$B$3,$C18,$B$5,$B$6,$B$7) -> 2.374839971e-11 | V18: =Binom(0,0,V$17,$B$3,$C18,$B$5,$B$6,$B$7) -> 0 | W18: =Binom(0,0,W$17,$B$3,$C18,$B$5,$B$6,$B$7) -> 0 | X18: =Binom(0,0,X$17,$B$3,$C18,$B$5,$B$6,$B$7) -> 0 | Y18: =Binom(0,0,Y$17,$B$3,$C18,$B$5,$B$6,$B$7) -> 0 | Z18: =Binom(0,0,Z$17,$B$3,$C18,$B$5,$B$6,$B$7) -> 0 | AA18: =Binom(0,0,AA$17,$B$3,$C18,$B$5,$B$6,$B$7) -> 0 | AB18: =Binom(0,0,AB$17,$B$3,$C18,$B$5,$B$6,$B$7) -> 0
C19: 0.5 | D19: =Binom(0,0,D$17,$B$3,$C19,$B$5,$B$6,$B$7) -> 90.82496124 | E19: =Binom(0,0,E$17,$B$3,$C19,$B$5,$B$6,$B$7) -> 88.84917797 | F19: =Binom(0,0,F$17,$B$3,$C19,$B$5,$B$6,$B$7) -> 86.05935931 | G19: =Binom(0,0,G$17,$B$3,$C19,$B$5,$B$6,$B$7) -> 82.73599839 | H19: =Binom(0,0,H$17,$B$3,$C19,$B$5,$B$6,$B$7) -> 78.77705726 | I19: =Binom(0,0,I$17,$B$3,$C19,$B$5,$B$6,$B$7) -> 74.06098363 | J19: =Binom(0,0,J$17,$B$3,$C19,$B$5,$B$6,$B$7) -> 68.44297875 | K19: =Binom(0,0,K$17,$B$3,$C19,$B$5,$B$6,$B$7) -> 61.75058141 | L19: =Binom(0,0,L$17,$B$3,$C19,$B$5,$B$6,$B$7) -> 53.7814125 | M19: =Binom(0,0,M$17,$B$3,$C19,$B$5,$B$6,$B$7) -> 44.34200572 | N19: =Binom(0,0,N$17,$B$3,$C19,$B$5,$B$6,$B$7) -> 33.48496209 | O19: =Binom(0,0,O$17,$B$3,$C19,$B$5,$B$6,$B$7) -> 22.0455985 | P19: =Binom(0,0,P$17,$B$3,$C19,$B$5,$B$6,$B$7) -> 11.88611135 | Q19: =Binom(0,0,Q$17,$B$3,$C19,$B$5,$B$6,$B$7) -> 4.887174183 | R19: =Binom(0,0,R$17,$B$3,$C19,$B$5,$B$6,$B$7) -> 1.412423211 | S19: =Binom(0,0,S$17,$B$3,$C19,$B$5,$B$6,$B$7) -> 0.2578127627 | T19: =Binom(0,0,T$17,$B$3,$C19,$B$5,$B$6,$B$7) -> 0.02494305132 | U19: =Binom(0,0,U$17,$B$3,$C19,$B$5,$B$6,$B$7) -> 0.0008594435583 | V19: =Binom(0,0,V$17,$B$3,$C19,$B$5,$B$6,$B$7) -> 1.677579264e-06 | W19: =Binom(0,0,W$17,$B$3,$C19,$B$5,$B$6,$B$7) -> 1.944994524e-11 | X19: =Binom(0,0,X$17,$B$3,$C19,$B$5,$B$6,$B$7) -> -1.482322805e-18 | Y19: =Binom(0,0,Y$17,$B$3,$C19,$B$5,$B$6,$B$7) -> 0 | Z19: =Binom(0,0,Z$17,$B$3,$C19,$B$5,$B$6,$B$7) -> 0 | AA19: =Binom(0,0,AA$17,$B$3,$C19,$B$5,$B$6,$B$7) -> 0 | AB19: =Binom(0,0,AB$17,$B$3,$C19,$B$5,$B$6,$B$7) -> 0
C20: 0.75 | D20: =Binom(0,0,D$17,$B$3,$C20,$B$5,$B$6,$B$7) -> 90.41823708 | E20: =Binom(0,0,E$17,$B$3,$C20,$B$5,$B$6,$B$7) -> 88.07630422 | F20: =Binom(0,0,F$17,$B$3,$C20,$B$5,$B$6,$B$7) -> 85.28648556 | G20: =Binom(0,0,G$17,$B$3,$C20,$B$5,$B$6,$B$7) -> 81.96312464 | H20: =Binom(0,0,H$17,$B$3,$C20,$B$5,$B$6,$B$7) -> 78.00418351 | I20: =Binom(0,0,I$17,$B$3,$C20,$B$5,$B$6,$B$7) -> 73.28811002 | J20: =Binom(0,0,J$17,$B$3,$C20,$B$5,$B$6,$B$7) -> 67.67019296 | K20: =Binom(0,0,K$17,$B$3,$C20,$B$5,$B$6,$B$7) -> 60.98102049 | L20: =Binom(0,0,L$17,$B$3,$C20,$B$5,$B$6,$B$7) -> 53.04698981 | M20: =Binom(0,0,M$17,$B$3,$C20,$B$5,$B$6,$B$7) -> 43.79297987 | N20: =Binom(0,0,N$17,$B$3,$C20,$B$5,$B$6,$B$7) -> 33.48357635 | O20: =Binom(0,0,O$17,$B$3,$C20,$B$5,$B$6,$B$7) -> 22.98084564 | P20: =Binom(0,0,P$17,$B$3,$C20,$B$5,$B$6,$B$7) -> 13.65528089 | Q20: =Binom(0,0,Q$17,$B$3,$C20,$B$5,$B$6,$B$7) -> 6.752188412 | R20: =Binom(0,0,R$17,$B$3,$C20,$B$5,$B$6,$B$7) -> 2.658963549 | S20: =Binom(0,0,S$17,$B$3,$C20,$B$5,$B$6,$B$7) -> 0.7907785895 | T20: =Binom(0,0,T$17,$B$3,$C20,$B$5,$B$6,$B$7) -> 0.1650486722 | U20: =Binom(0,0,U$17,$B$3,$C20,$B$5,$B$6,$B$7) -> 0.02142848993 | V20: =Binom(0,0,V$17,$B$3,$C20,$B$5,$B$6,$B$7) -> 0.001339847459 | W20: =Binom(0,0,W$17,$B$3,$C20,$B$5,$B$6,$B$7) -> 1.400007441e-05 | X20: =Binom(0,0,X$17,$B$3,$C20,$B$5,$B$6,$B$7) -> 5.624112283e-09 | Y20: =Binom(0,0,Y$17,$B$3,$C20,$B$5,$B$6,$B$7) -> 5.600718551e-14 | Z20: =Binom(0,0,Z$17,$B$3,$C20,$B$5,$B$6,$B$7) -> 0 | AA20: =Binom(0,0,AA$17,$B$3,$C20,$B$5,$B$6,$B$7) -> 0 | AB20: =Binom(0,0,AB$17,$B$3,$C20,$B$5,$B$6,$B$7) -> 0
C21: 1 | D21: =Binom(0,0,D$17,$B$3,$C21,$B$5,$B$6,$B$7) -> 89.6511382 | E21: =Binom(0,0,E$17,$B$3,$C21,$B$5,$B$6,$B$7) -> 87.30920534 | F21: =Binom(0,0,F$17,$B$3,$C21,$B$5,$B$6,$B$7) -> 84.51938668 | G21: =Binom(0,0,G$17,$B$3,$C21,$B$5,$B$6,$B$7) -> 81.19602575 | H21: =Binom(0,0,H$17,$B$3,$C21,$B$5,$B$6,$B$7) -> 77.23708501 | I21: =Binom(0,0,I$17,$B$3,$C21,$B$5,$B$6,$B$7) -> 72.5210968 | J21: =Binom(0,0,J$17,$B$3,$C21,$B$5,$B$6,$B$7) -> 66.90532281 | K21: =Binom(0,0,K$17,$B$3,$C21,$B$5,$B$6,$B$7) -> 60.23458778 | L21: =Binom(0,0,L$17,$B$3,$C21,$B$5,$B$6,$B$7) -> 52.38720915 | M21: =Binom(0,0,M$17,$B$3,$C21,$B$5,$B$6,$B$7) -> 43.39371724 | N21: =Binom(0,0,N$17,$B$3,$C21,$B$5,$B$6,$B$7) -> 33.611367 | O21: =Binom(0,0,O$17,$B$3,$C21,$B$5,$B$6,$B$7) -> 23.81970187 | P21: =Binom(0,0,P$17,$B$3,$C21,$B$5,$B$6,$B$7) -> 15.07392832 | Q21: =Binom(0,0,Q$17,$B$3,$C21,$B$5,$B$6,$B$7) -> 8.299238225 | R21: =Binom(0,0,R$17,$B$3,$C21,$B$5,$B$6,$B$7) -> 3.866803466 | S21: =Binom(0,0,S$17,$B$3,$C21,$B$5,$B$6,$B$7) -> 1.476275668 | T21: =Binom(0,0,T$17,$B$3,$C21,$B$5,$B$6,$B$7) -> 0.4420175661 | U21: =Binom(0,0,U$17,$B$3,$C21,$B$5,$B$6,$B$7) -> 0.09726994 | V21: =Binom(0,0,V$17,$B$3,$C21,$B$5,$B$6,$B$7) -> 0.01422561029 | W21: =Binom(0,0,W$17,$B$3,$C21,$B$5,$B$6,$B$7) -> 0.001133278506 | X21: =Binom(0,0,X$17,$B$3,$C21,$B$5,$B$6,$B$7) -> 2.060150753e-05 | Y21: =Binom(0,0,Y$17,$B$3,$C21,$B$5,$B$6,$B$7) -> 3.256314003e-08 | Z21: =Binom(0,0,Z$17,$B$3,$C21,$B$5,$B$6,$B$7) -> 3.297678351e-12 | AA21: =Binom(0,0,AA$17,$B$3,$C21,$B$5,$B$6,$B$7) -> 2.211622569e-17 | AB21: =Binom(0,0,AB$17,$B$3,$C21,$B$5,$B$6,$B$7) -> 0
C22: 1.25 | D22: =Binom(0,0,D$17,$B$3,$C22,$B$5,$B$6,$B$7) -> 88.88977104 | E22: =Binom(0,0,E$17,$B$3,$C22,$B$5,$B$6,$B$7) -> 86.54783818 | F22: =Binom(0,0,F$17,$B$3,$C22,$B$5,$B$6,$B$7) -> 83.75801952 | G22: =Binom(0,0,G$17,$B$3,$C22,$B$5,$B$6,$B$7) -> 80.43465895 | H22: =Binom(0,0,H$17,$B$3,$C22,$B$5,$B$6,$B$7) -> 76.47577053 | I22: =Binom(0,0,I$17,$B$3,$C22,$B$5,$B$6,$B$7) -> 71.76096401 | J22: =Binom(0,0,J$17,$B$3,$C22,$B$5,$B$6,$B$7) -> 66.15420828 | K22: =Binom(0,0,K$17,$B$3,$C22,$B$5,$B$6,$B$7) -> 59.52481137 | L22: =Binom(0,0,L$17,$B$3,$C22,$B$5,$B$6,$B$7) -> 51.80756835 | M22: =Binom(0,0,M$17,$B$3,$C22,$B$5,$B$6,$B$7) -> 43.10198044 | N22: =Binom(0,0,N$17,$B$3,$C22,$B$5,$B$6,$B$7) -> 33.79024753 | O22: =Binom(0,0,O$17,$B$3,$C22,$B$5,$B$6,$B$7) -> 24.56397822 | P22: =Binom(0,0,P$17,$B$3,$C22,$B$5,$B$6,$B$7) -> 16.26453003 | Q22: =Binom(0,0,Q$17,$B$3,$C22,$B$5,$B$6,$B$7) -> 9.625855277 | R22: =Binom(0,0,R$17,$B$3,$C22,$B$5,$B$6,$B$7) -> 4.996572566 | S22: =Binom(0,0,S$17,$B$3,$C22,$B$5,$B$6,$B$7) -> 2.221430953 | T22: =Binom(0,0,T$17,$B$3,$C22,$B$5,$B$6,$B$7) -> 0.8203533936 | U22: =Binom(0,0,U$17,$B$3,$C22,$B$5,$B$6,$B$7) -> 0.2434693073 | V22: =Binom(0,0,V$17,$B$3,$C22,$B$5,$B$6,$B$7) -> 0.05489927344 | W22: =Binom(0,0,W$17,$B$3,$C22,$B$5,$B$6,$B$7) -> 0.008372817207 | X22: =Binom(0,0,X$17,$B$3,$C22,$B$5,$B$6,$B$7) -> 0.0007217175548 | Y22: =Binom(0,0,Y$17,$B$3,$C22,$B$5,$B$6,$B$7) -> 1.567467866e-05 | Z22: =Binom(0,0,Z$17,$B$3,$C22,$B$5,$B$6,$B$7) -> 4.628576116e-08 | AA22: =Binom(0,0,AA$17,$B$3,$C22,$B$5,$B$6,$B$7) -> 1.51891913e-11 | AB22: =Binom(0,0,AB$17,$B$3,$C22,$B$5,$B$6,$B$7) -> 5.136724919e-16
C23: 1.5 | D23: =Binom(0,0,D$17,$B$3,$C23,$B$5,$B$6,$B$7) -> 88.13409277 | E23: =Binom(0,0,E$17,$B$3,$C23,$B$5,$B$6,$B$7) -> 85.79215991 | F23: =Binom(0,0,F$17,$B$3,$C23,$B$5,$B$6,$B$7) -> 83.00234144 | G23: =Binom(0,0,G$17,$B$3,$C23,$B$5,$B$6,$B$7) -> 79.67900525 | H23: =Binom(0,0,H$17,$B$3,$C23,$B$5,$B$6,$B$7) -> 75.72069346 | I23: =Binom(0,0,I$17,$B$3,$C23,$B$5,$B$6,$B$7) -> 71.01012228 | J23: =Binom(0,0,J$17,$B$3,$C23,$B$5,$B$6,$B$7) -> 65.42361877 | K23: =Binom(0,0,K$17,$B$3,$C23,$B$5,$B$6,$B$7) -> 58.85865657 | L23: =Binom(0,0,L$17,$B$3,$C23,$B$5,$B$6,$B$7) -> 51.29585268 | M23: =Binom(0,0,M$17,$B$3,$C23,$B$5,$B$6,$B$7) -> 42.88215277 | N23: =Binom(0,0,N$17,$B$3,$C23,$B$5,$B$6,$B$7) -> 33.98756925 | O23: =Binom(0,0,O$17,$B$3,$C23,$B$5,$B$6,$B$7) -> 25.2254298 | P23: =Binom(0,0,P$17,$B$3,$C23,$B$5,$B$6,$B$7) -> 17.29117793 | Q23: =Binom(0,0,Q$17,$B$3,$C23,$B$5,$B$6,$B$7) -> 10.78815463 | R23: =Binom(0,0,R$17,$B$3,$C23,$B$5,$B$6,$B$7) -> 6.042695514 | S23: =Binom(0,0,S$17,$B$3,$C23,$B$5,$B$6,$B$7) -> 2.980028129 | T23: =Binom(0,0,T$17,$B$3,$C23,$B$5,$B$6,$B$7) -> 1.269066139 | U23: =Binom(0,0,U$17,$B$3,$C23,$B$5,$B$6,$B$7) -> 0.4562981055 | V23: =Binom(0,0,V$17,$B$3,$C23,$B$5,$B$6,$B$7) -> 0.1322143453 | W23: =Binom(0,0,W$17,$B$3,$C23,$B$5,$B$6,$B$7) -> 0.02956433749 | X23: =Binom(0,0,X$17,$B$3,$C23,$B$5,$B$6,$B$7) -> 0.004577119694 | Y23: =Binom(0,0,Y$17,$B$3,$C23,$B$5,$B$6,$B$7) -> 0.0003786461308 | Z23: =Binom(0,0,Z$17,$B$3,$C23,$B$5,$B$6,$B$7) -> 8.303088972e-06 | AA23: =Binom(0,0,AA$17,$B$3,$C23,$B$5,$B$6,$B$7) -> 3.306220558e-08 | AB23: =Binom(0,0,AB$17,$B$3,$C23,$B$5,$B$6,$B$7) -> 2.094486155e-11
C24: 1.75 | D24: =Binom(0,0,D$17,$B$3,$C24,$B$5,$B$6,$B$7) -> 87.38406089 | E24: =Binom(0,0,E$17,$B$3,$C24,$B$5,$B$6,$B$7) -> 85.0421281 | F24: =Binom(0,0,F$17,$B$3,$C24,$B$5,$B$6,$B$7) -> 82.25231891 | G24: =Binom(0,0,G$17,$B$3,$C24,$B$5,$B$6,$B$7) -> 78.92923283 | H24: =Binom(0,0,H$17,$B$3,$C24,$B$5,$B$6,$B$7) -> 74.97291958 | I24: =Binom(0,0,I$17,$B$3,$C24,$B$5,$B$6,$B$7) -> 70.27198619 | J24: =Binom(0,0,J$17,$B$3,$C24,$B$5,$B$6,$B$7) -> 64.71729967 | K24: =Binom(0,0,K$17,$B$3,$C24,$B$5,$B$6,$B$7) -> 58.23630229 | L24: =Binom(0,0,L$17,$B$3,$C24,$B$5,$B$6,$B$7) -> 50.84208069 | M24: =Binom(0,0,M$17,$B$3,$C24,$B$5,$B$6,$B$7) -> 42.70832755 | N24: =Binom(0,0,N$17,$B$3,$C24,$B$5,$B$6,$B$7) -> 34.18660791 | O24: =Binom(0,0,O$17,$B$3,$C24,$B$5,$B$6,$B$7) -> 25.81671589 | P24: =Binom(0,0,P$17,$B$3,$C24,$B$5,$B$6,$B$7) -> 18.19247029 | Q24: =Binom(0,0,Q$17,$B$3,$C24,$B$5,$B$6,$B$7) -> 11.82183458 | R24: =Binom(0,0,R$17,$B$3,$C24,$B$5,$B$6,$B$7) -> 7.009941573 | S24: =Binom(0,0,S$17,$B$3,$C24,$B$5,$B$6,$B$7) -> 3.731401231 | T24: =Binom(0,0,T$17,$B$3,$C24,$B$5,$B$6,$B$7) -> 1.762054384 | U24: =Binom(0,0,U$17,$B$3,$C24,$B$5,$B$6,$B$7) -> 0.7219396677 | V24: =Binom(0,0,V$17,$B$3,$C24,$B$5,$B$6,$B$7) -> 0.2498857119 | W24: =Binom(0,0,W$17,$B$3,$C24,$B$5,$B$6,$B$7) -> 0.0709984219 | X24: =Binom(0,0,X$17,$B$3,$C24,$B$5,$B$6,$B$7) -> 0.01526669668 | Y24: =Binom(0,0,Y$17,$B$3,$C24,$B$5,$B$6,$B$7) -> 0.00232663975 | Z24: =Binom(0,0,Z$17,$B$3,$C24,$B$5,$B$6,$B$7) -> 0.0001686257893 | AA24: =Binom(0,0,AA$17,$B$3,$C24,$B$5,$B$6,$B$7) -> 3.432185719e-06 | AB24: =Binom(0,0,AB$17,$B$3,$C24,$B$5,$B$6,$B$7) -> 1.563460978e-08
C25: 2 | D25: =Binom(0,0,D$17,$B$3,$C25,$B$5,$B$6,$B$7) -> 86.63963323 | E25: =Binom(0,0,E$17,$B$3,$C25,$B$5,$B$6,$B$7) -> 84.29770342 | F25: =Binom(0,0,F$17,$B$3,$C25,$B$5,$B$6,$B$7) -> 81.50798981 | G25: =Binom(0,0,G$17,$B$3,$C25,$B$5,$B$6,$B$7) -> 78.18582046 | H25: =Binom(0,0,H$17,$B$3,$C25,$B$5,$B$6,$B$7) -> 74.23386797 | I25: =Binom(0,0,I$17,$B$3,$C25,$B$5,$B$6,$B$7) -> 69.54916279 | J25: =Binom(0,0,J$17,$B$3,$C25,$B$5,$B$6,$B$7) -> 64.03802829 | K25: =Binom(0,0,K$17,$B$3,$C25,$B$5,$B$6,$B$7) -> 57.65366792 | L25: =Binom(0,0,L$17,$B$3,$C25,$B$5,$B$6,$B$7) -> 50.43467865 | M25: =Binom(0,0,M$17,$B$3,$C25,$B$5,$B$6,$B$7) -> 42.56439895 | N25: =Binom(0,0,N$17,$B$3,$C25,$B$5,$B$6,$B$7) -> 34.37846544 | O25: =Binom(0,0,O$17,$B$3,$C25,$B$5,$B$6,$B$7) -> 26.34794 | P25: =Binom(0,0,P$17,$B$3,$C25,$B$5,$B$6,$B$7) -> 18.99382452 | Q25: =Binom(0,0,Q$17,$B$3,$C25,$B$5,$B$6,$B$7) -> 12.75126483 | R25: =Binom(0,0,R$17,$B$3,$C25,$B$5,$B$6,$B$7) -> 7.905626024 | S25: =Binom(0,0,S$17,$B$3,$C25,$B$5,$B$6,$B$7) -> 4.464715249 | T25: =Binom(0,0,T$17,$B$3,$C25,$B$5,$B$6,$B$7) -> 2.278800185 | U25: =Binom(0,0,U$17,$B$3,$C25,$B$5,$B$6,$B$7) -> 1.028931599 | V25: =Binom(0,0,V$17,$B$3,$C25,$B$5,$B$6,$B$7) -> 0.406377375 | W25: =Binom(0,0,W$17,$B$3,$C25,$B$5,$B$6,$B$7) -> 0.1354499947 | X25: =Binom(0,0,X$17,$B$3,$C25,$B$5,$B$6,$B$7) -> 0.03699484383 | Y25: =Binom(0,0,Y$17,$B$3,$C25,$B$5,$B$6,$B$7) -> 0.007660872973 | Z25: =Binom(0,0,Z$17,$B$3,$C25,$B$5,$B$6,$B$7) -> 0.001076576075 | AA25: =Binom(0,0,AA$17,$B$3,$C25,$B$5,$B$6,$B$7) -> 6.458150743e-05 | AB25: =Binom(0,0,AB$17,$B$3,$C25,$B$5,$B$6,$B$7) -> 1.169147791e-06
C26: 2.25 | D26: =Binom(0,0,D$17,$B$3,$C26,$B$5,$B$6,$B$7) -> 85.90076869 | E26: =Binom(0,0,E$17,$B$3,$C26,$B$5,$B$6,$B$7) -> 83.5588709 | F26: =Binom(0,0,F$17,$B$3,$C26,$B$5,$B$6,$B$7) -> 80.769549 | G26: =Binom(0,0,G$17,$B$3,$C26,$B$5,$B$6,$B$7) -> 77.44941125 | H26: =Binom(0,0,H$17,$B$3,$C26,$B$5,$B$6,$B$7) -> 73.50541096 | I26: =Binom(0,0,I$17,$B$3,$C26,$B$5,$B$6,$B$7) -> 68.84314565 | J26: =Binom(0,0,J$17,$B$3,$C26,$B$5,$B$6,$B$7) -> 63.38611849 | K26: =Binom(0,0,K$17,$B$3,$C26,$B$5,$B$6,$B$7) -> 57.10600871 | L26: =Binom(0,0,L$17,$B$3,$C26,$B$5,$B$6,$B$7) -> 50.06466745 | M26: =Binom(0,0,M$17,$B$3,$C26,$B$5,$B$6,$B$7) -> 42.44259008 | N26: =Binom(0,0,N$17,$B$3,$C26,$B$5,$B$6,$B$7) -> 34.55856271 | O26: =Binom(0,0,O$17,$B$3,$C26,$B$5,$B$6,$B$7) -> 26.82722486 | P26: =Binom(0,0,P$17,$B$3,$C26,$B$5,$B$6,$B$7) -> 19.71305342 | Q26: =Binom(0,0,Q$17,$B$3,$C26,$B$5,$B$6,$B$7) -> 13.59396508 | R26: =Binom(0,0,R$17,$B$3,$C26,$B$5,$B$6,$B$7) -> 8.736604191 | S26: =Binom(0,0,S$17,$B$3,$C26,$B$5,$B$6,$B$7) -> 5.174183142 | T26: =Binom(0,0,T$17,$B$3,$C26,$B$5,$B$6,$B$7) -> 2.805542449 | U26: =Binom(0,0,U$17,$B$3,$C26,$B$5,$B$6,$B$7) -> 1.368077848 | V26: =Binom(0,0,V$17,$B$3,$C26,$B$5,$B$6,$B$7) -> 0.596041803 | W26: =Binom(0,0,W$17,$B$3,$C26,$B$5,$B$6,$B$7) -> 0.2246058694 | X26: =Binom(0,0,X$17,$B$3,$C26,$B$5,$B$6,$B$7) -> 0.07246703047 | Y26: =Binom(0,0,Y$17,$B$3,$C26,$B$5,$B$6,$B$7) -> 0.01863769316 | Z26: =Binom(0,0,Z$17,$B$3,$C26,$B$5,$B$6,$B$7) -> 0.003702103797 | AA26: =Binom(0,0,AA$17,$B$3,$C26,$B$5,$B$6,$B$7) -> 0.0004439431816 | AB26: =Binom(0,0,AB$17,$B$3,$C26,$B$5,$B$6,$B$7) -> 2.145988809e-05
C27: 2.5 | D27: =Binom(0,0,D$17,$B$3,$C27,$B$5,$B$6,$B$7) -> 85.16743369 | E27: =Binom(0,0,E$17,$B$3,$C27,$B$5,$B$6,$B$7) -> 82.82568586 | F27: =Binom(0,0,F$17,$B$3,$C27,$B$5,$B$6,$B$7) -> 80.03730186 | G27: =Binom(0,0,G$17,$B$3,$C27,$B$5,$B$6,$B$7) -> 76.72079251 | H27: =Binom(0,0,H$17,$B$3,$C27,$B$5,$B$6,$B$7) -> 72.78863631 | I27: =Binom(0,0,I$17,$B$3,$C27,$B$5,$B$6,$B$7) -> 68.15525145 | J27: =Binom(0,0,J$17,$B$3,$C27,$B$5,$B$6,$B$7) -> 62.76051579 | K27: =Binom(0,0,K$17,$B$3,$C27,$B$5,$B$6,$B$7) -> 56.59077728 | L27: =Binom(0,0,L$17,$B$3,$C27,$B$5,$B$6,$B$7) -> 49.72390409 | M27: =Binom(0,0,M$17,$B$3,$C27,$B$5,$B$6,$B$7) -> 42.33366909 | N27: =Binom(0,0,N$17,$B$3,$C27,$B$5,$B$6,$B$7) -> 34.72473274 | O27: =Binom(0,0,O$17,$B$3,$C27,$B$5,$B$6,$B$7) -> 27.2611259 | P27: =Binom(0,0,P$17,$B$3,$C27,$B$5,$B$6,$B$7) -> 20.36322822 | Q27: =Binom(0,0,Q$17,$B$3,$C27,$B$5,$B$6,$B$7) -> 14.36303797 | R27: =Binom(0,0,R$17,$B$3,$C27,$B$5,$B$6,$B$7) -> 9.510585843 | S27: =Binom(0,0,S$17,$B$3,$C27,$B$5,$B$6,$B$7) -> 5.856782708 | T27: =Binom(0,0,T$17,$B$3,$C27,$B$5,$B$6,$B$7) -> 3.333664802 | U27: =Binom(0,0,U$17,$B$3,$C27,$B$5,$B$6,$B$7) -> 1.7307924 | V27: =Binom(0,0,V$17,$B$3,$C27,$B$5,$B$6,$B$7) -> 0.8130795624 | W27: =Binom(0,0,W$17,$B$3,$C27,$B$5,$B$6,$B$7) -> 0.3385180846 | X27: =Binom(0,0,X$17,$B$3,$C27,$B$5,$B$6,$B$7) -> 0.1229275511 | Y27: =Binom(0,0,Y$17,$B$3,$C27,$B$5,$B$6,$B$7) -> 0.03756617698 | Z27: =Binom(0,0,Z$17,$B$3,$C27,$B$5,$B$6,$B$7) -> 0.009176206285 | AA27: =Binom(0,0,AA$17,$B$3,$C27,$B$5,$B$6,$B$7) -> 0.001667808035 | AB27: =Binom(0,0,AB$17,$B$3,$C27,$B$5,$B$6,$B$7) -> 0.0001612581937
C28: 2.75 | D28: =Binom(0,0,D$17,$B$3,$C28,$B$5,$B$6,$B$7) -> 84.43962151 | E28: =Binom(0,0,E$17,$B$3,$C28,$B$5,$B$6,$B$7) -> 82.0982828 | F28: =Binom(0,0,F$17,$B$3,$C28,$B$5,$B$6,$B$7) -> 79.31161068 | G28: =Binom(0,0,G$17,$B$3,$C28,$B$5,$B$6,$B$7) -> 76.00102332 | H28: =Binom(0,0,H$17,$B$3,$C28,$B$5,$B$6,$B$7) -> 72.08433659 | I28: =Binom(0,0,I$17,$B$3,$C28,$B$5,$B$6,$B$7) -> 67.48595328 | J28: =Binom(0,0,J$17,$B$3,$C28,$B$5,$B$6,$B$7) -> 62.15919633 | K28: =Binom(0,0,K$17,$B$3,$C28,$B$5,$B$6,$B$7) -> 56.10307736 | L28: =Binom(0,0,L$17,$B$3,$C28,$B$5,$B$6,$B$7) -> 49.4060258 | M28: =Binom(0,0,M$17,$B$3,$C28,$B$5,$B$6,$B$7) -> 42.23400397 | N28: =Binom(0,0,N$17,$B$3,$C28,$B$5,$B$6,$B$7) -> 34.87614886 | O28: =Binom(0,0,O$17,$B$3,$C28,$B$5,$B$6,$B$7) -> 27.6549924 | P28: =Binom(0,0,P$17,$B$3,$C28,$B$5,$B$6,$B$7) -> 20.9542869 | Q28: =Binom(0,0,Q$17,$B$3,$C28,$B$5,$B$6,$B$7) -> 15.0685928 | R28: =Binom(0,0,R$17,$B$3,$C28,$B$5,$B$6,$B$7) -> 10.23269334 | S28: =Binom(0,0,S$17,$B$3,$C28,$B$5,$B$6,$B$7) -> 6.51121099 | T28: =Binom(0,0,T$17,$B$3,$C28,$B$5,$B$6,$B$7) -> 3.857615558 | U28: =Binom(0,0,U$17,$B$3,$C28,$B$5,$B$6,$B$7) -> 2.109425546 | V28: =Binom(0,0,V$17,$B$3,$C28,$B$5,$B$6,$B$7) -> 1.052826624 | W28: =Binom(0,0,W$17,$B$3,$C28,$B$5,$B$6,$B$7) -> 0.4752136701 | X28: =Binom(0,0,X$17,$B$3,$C28,$B$5,$B$6,$B$7) -> 0.1892592254 | Y28: =Binom(0,0,Y$17,$B$3,$C28,$B$5,$B$6,$B$7) -> 0.06593812198 | Z28: =Binom(0,0,Z$17,$B$3,$C28,$B$5,$B$6,$B$7) -> 0.01887306375 | AA28: =Binom(0,0,AA$17,$B$3,$C28,$B$5,$B$6,$B$7) -> 0.004374404426 | AB28: =Binom(0,0,AB$17,$B$3,$C28,$B$5,$B$6,$B$7) -> 0.0006781008301
C29: 3 | D29: =Binom(0,0,D$17,$B$3,$C29,$B$5,$B$6,$B$7) -> 83.7173707 | E29: =Binom(0,0,E$17,$B$3,$C29,$B$5,$B$6,$B$7) -> 81.37683457 | F29: =Binom(0,0,F$17,$B$3,$C29,$B$5,$B$6,$B$7) -> 78.59291005 | G29: =Binom(0,0,G$17,$B$3,$C29,$B$5,$B$6,$B$7) -> 75.29063515 | H29: =Binom(0,0,H$17,$B$3,$C29,$B$5,$B$6,$B$7) -> 71.39301519 | I29: =Binom(0,0,I$17,$B$3,$C29,$B$5,$B$6,$B$7) -> 66.83528027 | J29: =Binom(0,0,J$17,$B$3,$C29,$B$5,$B$6,$B$7) -> 61.58016133 | K29: =Binom(0,0,K$17,$B$3,$C29,$B$5,$B$6,$B$7) -> 55.64002819 | L29: =Binom(0,0,L$17,$B$3,$C29,$B$5,$B$6,$B$7) -> 49.10625494 | M29: =Binom(0,0,M$17,$B$3,$C29,$B$5,$B$6,$B$7) -> 42.14020075 | N29: =Binom(0,0,N$17,$B$3,$C29,$B$5,$B$6,$B$7) -> 35.01272324 | O29: =Binom(0,0,O$17,$B$3,$C29,$B$5,$B$6,$B$7) -> 28.01324429 | P29: =Binom(0,0,P$17,$B$3,$C29,$B$5,$B$6,$B$7) -> 21.4940012 | Q29: =Binom(0,0,Q$17,$B$3,$C29,$B$5,$B$6,$B$7) -> 15.71862815 | R29: =Binom(0,0,R$17,$B$3,$C29,$B$5,$B$6,$B$7) -> 10.90793573 | S29: =Binom(0,0,S$17,$B$3,$C29,$B$5,$B$6,$B$7) -> 7.137237794 | T29: =Binom(0,0,T$17,$B$3,$C29,$B$5,$B$6,$B$7) -> 4.374181596 | U29: =Binom(0,0,U$17,$B$3,$C29,$B$5,$B$6,$B$7) -> 2.497675802 | V29: =Binom(0,0,V$17,$B$3,$C29,$B$5,$B$6,$B$7) -> 1.311530863 | W29: =Binom(0,0,W$17,$B$3,$C29,$B$5,$B$6,$B$7) -> 0.6317555432 | X29: =Binom(0,0,X$17,$B$3,$C29,$B$5,$B$6,$B$7) -> 0.2719373833 | Y29: =Binom(0,0,Y$17,$B$3,$C29,$B$5,$B$6,$B$7) -> 0.1044710935 | Z29: =Binom(0,0,Z$17,$B$3,$C29,$B$5,$B$6,$B$7) -> 0.03417684369 | AA29: =Binom(0,0,AA$17,$B$3,$C29,$B$5,$B$6,$B$7) -> 0.009275632886 | AB29: =Binom(0,0,AB$17,$B$3,$C29,$B$5,$B$6,$B$7) -> 0.001952517859

Sheet American Put
A1: Input | D1: Output
A2: Stock price S = | B2: 100 | D2: American Put
A3: Strike price K = | B3: 105 | D3: =Binom(1,0,B2,B3,B4,B5,B6,B7) -> 12.06080043
A4: Maturity T = | B4: 0.5
A5: interest rate r = | B5: 0.03
A6: Volatility vol = | B6: 0.35
A7: Number of steps N = | B7: 12
G8: Smax | H8: =100*EXP(12*0.35*SQRT(0.25)) -> 816.6169913 | K8: Smin | L8: =100*EXP(-12*0.35*SQRT(0.25)) -> 12.24564283
G9: up factor | H9: =EXP(0.35*SQRT(0.25)) -> 1.191246217 | K9: down factor | L9: =EXP(-0.35*SQRT(0.25)) -> 0.8394570208
A10: European =
D16: Smin | AB16: Smax
C17: S T | D17: =E17*$L$9 -> 12.24564283 | E17: =F17*$L$9 -> 14.58757569 | F17: =G17*$L$9 -> 17.37739435 | G17: =H17*$L$9 -> 20.70075527 | H17: =I17*$L$9 -> 24.65969639 | I17: =J17*$L$9 -> 29.37577003 | J17: =K17*$L$9 -> 34.99377491 | K17: =L17*$L$9 -> 41.68620197 | L17: =M17*$L$9 -> 49.65853038 | M17: =N17*$L$9 -> 59.15553644 | N17: =O17*$L$9 -> 70.46880897 | O17: =P17*$L$9 -> 83.94570208 | P17: 100 | Q17: =P17*$H$9 -> 119.1246217 | R17: =Q17*$H$9 -> 141.9067549 | S17: =R17*$H$9 -> 169.0458848 | T17: =S17*$H$9 -> 201.3752707 | U17: =T17*$H$9 -> 239.8875294 | V17: =U17*$H$9 -> 285.7651118 | W17: =V17*$H$9 -> 340.4166083 | X17: =W17*$H$9 -> 405.5199967 | Y17: =X17*$H$9 -> 483.0741618 | Z17: =Y17*$H$9 -> 575.4602676 | AA17: =Z17*$H$9 -> 685.5148666 | AB17: =AA17*$H$9 -> 816.6169913
C18: 0.25 | D18: =Binom(1,0,D$17,$B$3,$C18,$B$5,$B$6,$B$7) -> 92.75435717 | E18: =Binom(1,0,E$17,$B$3,$C18,$B$5,$B$6,$B$7) -> 90.41242431 | F18: =Binom(1,0,F$17,$B$3,$C18,$B$5,$B$6,$B$7) -> 87.62260565 | G18: =Binom(1,0,G$17,$B$3,$C18,$B$5,$B$6,$B$7) -> 84.29924473 | H18: =Binom(1,0,H$17,$B$3,$C18,$B$5,$B$6,$B$7) -> 80.34030361 | I18: =Binom(1,0,I$17,$B$3,$C18,$B$5,$B$6,$B$7) -> 75.62422997 | J18: =Binom(1,0,J$17,$B$3,$C18,$B$5,$B$6,$B$7) -> 70.00622509 | K18: =Binom(1,0,K$17,$B$3,$C18,$B$5,$B$6,$B$7) -> 63.31379803 | L18: =Binom(1,0,L$17,$B$3,$C18,$B$5,$B$6,$B$7) -> 55.34146962 | M18: =Binom(1,0,M$17,$B$3,$C18,$B$5,$B$6,$B$7) -> 45.84446356 | N18: =Binom(1,0,N$17,$B$3,$C18,$B$5,$B$6,$B$7) -> 34.53119103 | O18: =Binom(1,0,O$17,$B$3,$C18,$B$5,$B$6,$B$7) -> 21.43422735 | P18: =Binom(1,0,P$17,$B$3,$C18,$B$5,$B$6,$B$7) -> 9.5498061 | Q18: =Binom(1,0,Q$17,$B$3,$C18,$B$5,$B$6,$B$7) -> 2.521361023 | R18: =Binom(1,0,R$17,$B$3,$C18,$B$5,$B$6,$B$7) -> 0.3099535455 | S18: =Binom(1,0,S$17,$B$3,$C18,$B$5,$B$6,$B$7) -> 0.01188306227 | T18: =Binom(1,0,T$17,$B$3,$C18,$B$5,$B$6,$B$7) -> 3.443442586e-05 | U18: =Binom(1,0,U$17,$B$3,$C18,$B$5,$B$6,$B$7) -> 2.374839971e-11 | V18: =Binom(1,0,V$17,$B$3,$C18,$B$5,$B$6,$B$7) -> 0 | W18: =Binom(1,0,W$17,$B$3,$C18,$B$5,$B$6,$B$7) -> 0 | X18: =Binom(1,0,X$17,$B$3,$C18,$B$5,$B$6,$B$7) -> 0 | Y18: =Binom(1,0,Y$17,$B$3,$C18,$B$5,$B$6,$B$7) -> 0 | Z18: =Binom(1,0,Z$17,$B$3,$C18,$B$5,$B$6,$B$7) -> 0 | AA18: =Binom(1,0,AA$17,$B$3,$C18,$B$5,$B$6,$B$7) -> 0 | AB18: =Binom(1,0,AB$17,$B$3,$C18,$B$5,$B$6,$B$7) -> 0
C19: 0.5 | D19: =Binom(1,0,D$17,$B$3,$C19,$B$5,$B$6,$B$7) -> 92.75435717 | E19: =Binom(1,0,E$17,$B$3,$C19,$B$5,$B$6,$B$7) -> 90.41242431 | F19: =Binom(1,0,F$17,$B$3,$C19,$B$5,$B$6,$B$7) -> 87.62260565 | G19: =Binom(1,0,G$17,$B$3,$C19,$B$5,$B$6,$B$7) -> 84.29924473 | H19: =Binom(1,0,H$17,$B$3,$C19,$B$5,$B$6,$B$7) -> 80.34030361 | I19: =Binom(1,0,I$17,$B$3,$C19,$B$5,$B$6,$B$7) -> 75.62422997 | J19: =Binom(1,0,J$17,$B$3,$C19,$B$5,$B$6,$B$7) -> 70.00622509 | K19: =Binom(1,0,K$17,$B$3,$C19,$B$5,$B$6,$B$7) -> 63.31379803 | L19: =Binom(1,0,L$17,$B$3,$C19,$B$5,$B$6,$B$7) -> 55.34146962 | M19: =Binom(1,0,M$17,$B$3,$C19,$B$5,$B$6,$B$7) -> 45.84446356 | N19: =Binom(1,0,N$17,$B$3,$C19,$B$5,$B$6,$B$7) -> 34.53119103 | O19: =Binom(1,0,O$17,$B$3,$C19,$B$5,$B$6,$B$7) -> 22.51889765 | P19: =Binom(1,0,P$17,$B$3,$C19,$B$5,$B$6,$B$7) -> 12.06080043 | Q19: =Binom(1,0,Q$17,$B$3,$C19,$B$5,$B$6,$B$7) -> 4.931877137 | R19: =Binom(1,0,R$17,$B$3,$C19,$B$5,$B$6,$B$7) -> 1.41718829 | S19: =Binom(1,0,S$17,$B$3,$C19,$B$5,$B$6,$B$7) -> 0.2581020259 | T19: =Binom(1,0,T$17,$B$3,$C19,$B$5,$B$6,$B$7) -> 0.02494305132 | U19: =Binom(1,0,U$17,$B$3,$C19,$B$5,$B$6,$B$7) -> 0.0008594435583 | V19: =Binom(1,0,V$17,$B$3,$C19,$B$5,$B$6,$B$7) -> 1.677579264e-06 | W19: =Binom(1,0,W$17,$B$3,$C19,$B$5,$B$6,$B$7) -> 1.944994524e-11 | X19: =Binom(1,0,X$17,$B$3,$C19,$B$5,$B$6,$B$7) -> -1.482322805e-18 | Y19: =Binom(1,0,Y$17,$B$3,$C19,$B$5,$B$6,$B$7) -> 0 | Z19: =Binom(1,0,Z$17,$B$3,$C19,$B$5,$B$6,$B$7) -> 0 | AA19: =Binom(1,0,AA$17,$B$3,$C19,$B$5,$B$6,$B$7) -> 0 | AB19: =Binom(1,0,AB$17,$B$3,$C19,$B$5,$B$6,$B$7) -> 0
C20: 0.75 | D20: =Binom(1,0,D$17,$B$3,$C20,$B$5,$B$6,$B$7) -> 92.75435717 | E20: =Binom(1,0,E$17,$B$3,$C20,$B$5,$B$6,$B$7) -> 90.41242431 | F20: =Binom(1,0,F$17,$B$3,$C20,$B$5,$B$6,$B$7) -> 87.62260565 | G20: =Binom(1,0,G$17,$B$3,$C20,$B$5,$B$6,$B$7) -> 84.29924473 | H20: =Binom(1,0,H$17,$B$3,$C20,$B$5,$B$6,$B$7) -> 80.34030361 | I20: =Binom(1,0,I$17,$B$3,$C20,$B$5,$B$6,$B$7) -> 75.62422997 | J20: =Binom(1,0,J$17,$B$3,$C20,$B$5,$B$6,$B$7) -> 70.00622509 | K20: =Binom(1,0,K$17,$B$3,$C20,$B$5,$B$6,$B$7) -> 63.31379803 | L20: =Binom(1,0,L$17,$B$3,$C20,$B$5,$B$6,$B$7) -> 55.34146962 | M20: =Binom(1,0,M$17,$B$3,$C20,$B$5,$B$6,$B$7) -> 45.84446356 | N20: =Binom(1,0,N$17,$B$3,$C20,$B$5,$B$6,$B$7) -> 34.73539369 | O20: =Binom(1,0,O$17,$B$3,$C20,$B$5,$B$6,$B$7) -> 23.60350437 | P20: =Binom(1,0,P$17,$B$3,$C20,$B$5,$B$6,$B$7) -> 13.92374556 | Q20: =Binom(1,0,Q$17,$B$3,$C20,$B$5,$B$6,$B$7) -> 6.845147151 | R20: =Binom(1,0,R$17,$B$3,$C20,$B$5,$B$6,$B$7) -> 2.683166725 | S20: =Binom(1,0,S$17,$B$3,$C20,$B$5,$B$6,$B$7) -> 0.7949115167 | T20: =Binom(1,0,T$17,$B$3,$C20,$B$5,$B$6,$B$7) -> 0.1653835452 | U20: =Binom(1,0,U$17,$B$3,$C20,$B$5,$B$6,$B$7) -> 0.02142848993 | V20: =Binom(1,0,V$17,$B$3,$C20,$B$5,$B$6,$B$7) -> 0.001339847459 | W20: =Binom(1,0,W$17,$B$3,$C20,$B$5,$B$6,$B$7) -> 1.400007441e-05 | X20: =Binom(1,0,X$17,$B$3,$C20,$B$5,$B$6,$B$7) -> 5.624112283e-09 | Y20: =Binom(1,0,Y$17,$B$3,$C20,$B$5,$B$6,$B$7) -> 5.600718551e-14 | Z20: =Binom(1,0,Z$17,$B$3,$C20,$B$5,$B$6,$B$7) -> 0 | AA20: =Binom(1,0,AA$17,$B$3,$C20,$B$5,$B$6,$B$7) -> 0 | AB20: =Binom(1,0,AB$17,$B$3,$C20,$B$5,$B$6,$B$7) -> 0
C21: 1 | D21: =Binom(1,0,D$17,$B$3,$C21,$B$5,$B$6,$B$7) -> 92.75435717 | E21: =Binom(1,0,E$17,$B$3,$C21,$B$5,$B$6,$B$7) -> 90.41242431 | F21: =Binom(1,0,F$17,$B$3,$C21,$B$5,$B$6,$B$7) -> 87.62260565 | G21: =Binom(1,0,G$17,$B$3,$C21,$B$5,$B$6,$B$7) -> 84.29924473 | H21: =Binom(1,0,H$17,$B$3,$C21,$B$5,$B$6,$B$7) -> 80.34030361 | I21: =Binom(1,0,I$17,$B$3,$C21,$B$5,$B$6,$B$7) -> 75.62422997 | J21: =Binom(1,0,J$17,$B$3,$C21,$B$5,$B$6,$B$7) -> 70.00622509 | K21: =Binom(1,0,K$17,$B$3,$C21,$B$5,$B$6,$B$7) -> 63.31379803 | L21: =Binom(1,0,L$17,$B$3,$C21,$B$5,$B$6,$B$7) -> 55.34146962 | M21: =Binom(1,0,M$17,$B$3,$C21,$B$5,$B$6,$B$7) -> 45.84446356 | N21: =Binom(1,0,N$17,$B$3,$C21,$B$5,$B$6,$B$7) -> 35.06539731 | O21: =Binom(1,0,O$17,$B$3,$C21,$B$5,$B$6,$B$7) -> 24.58994901 | P21: =Binom(1,0,P$17,$B$3,$C21,$B$5,$B$6,$B$7) -> 15.44211308 | Q21: =Binom(1,0,Q$17,$B$3,$C21,$B$5,$B$6,$B$7) -> 8.442673301 | R21: =Binom(1,0,R$17,$B$3,$C21,$B$5,$B$6,$B$7) -> 3.907856897 | S21: =Binom(1,0,S$17,$B$3,$C21,$B$5,$B$6,$B$7) -> 1.484242316 | T21: =Binom(1,0,T$17,$B$3,$C21,$B$5,$B$6,$B$7) -> 0.4427793736 | U21: =Binom(1,0,U$17,$B$3,$C21,$B$5,$B$6,$B$7) -> 0.09726994 | V21: =Binom(1,0,V$17,$B$3,$C21,$B$5,$B$6,$B$7) -> 0.01422561029 | W21: =Binom(1,0,W$17,$B$3,$C21,$B$5,$B$6,$B$7) -> 0.001133278506 | X21: =Binom(1,0,X$17,$B$3,$C21,$B$5,$B$6,$B$7) -> 2.060150753e-05 | Y21: =Binom(1,0,Y$17,$B$3,$C21,$B$5,$B$6,$B$7) -> 3.256314003e-08 | Z21: =Binom(1,0,Z$17,$B$3,$C21,$B$5,$B$6,$B$7) -> 3.297678351e-12 | AA21: =Binom(1,0,AA$17,$B$3,$C21,$B$5,$B$6,$B$7) -> 2.211622569e-17 | AB21: =Binom(1,0,AB$17,$B$3,$C21,$B$5,$B$6,$B$7) -> 0
C22: 1.25 | D22: =Binom(1,0,D$17,$B$3,$C22,$B$5,$B$6,$B$7) -> 92.75435717 | E22: =Binom(1,0,E$17,$B$3,$C22,$B$5,$B$6,$B$7) -> 90.41242431 | F22: =Binom(1,0,F$17,$B$3,$C22,$B$5,$B$6,$B$7) -> 87.62260565 | G22: =Binom(1,0,G$17,$B$3,$C22,$B$5,$B$6,$B$7) -> 84.29924473 | H22: =Binom(1,0,H$17,$B$3,$C22,$B$5,$B$6,$B$7) -> 80.34030361 | I22: =Binom(1,0,I$17,$B$3,$C22,$B$5,$B$6,$B$7) -> 75.62422997 | J22: =Binom(1,0,J$17,$B$3,$C22,$B$5,$B$6,$B$7) -> 70.00622509 | K22: =Binom(1,0,K$17,$B$3,$C22,$B$5,$B$6,$B$7) -> 63.31379803 | L22: =Binom(1,0,L$17,$B$3,$C22,$B$5,$B$6,$B$7) -> 55.34146962 | M22: =Binom(1,0,M$17,$B$3,$C22,$B$5,$B$6,$B$7) -> 45.84446356 | N22: =Binom(1,0,N$17,$B$3,$C22,$B$5,$B$6,$B$7) -> 35.41687919 | O22: =Binom(1,0,O$17,$B$3,$C22,$B$5,$B$6,$B$7) -> 25.47363251 | P22: =Binom(1,0,P$17,$B$3,$C22,$B$5,$B$6,$B$7) -> 16.73601728 | Q22: =Binom(1,0,Q$17,$B$3,$C22,$B$5,$B$6,$B$7) -> 9.820691367 | R22: =Binom(1,0,R$17,$B$3,$C22,$B$5,$B$6,$B$7) -> 5.059818485 | S22: =Binom(1,0,S$17,$B$3,$C22,$B$5,$B$6,$B$7) -> 2.238544493 | T22: =Binom(1,0,T$17,$B$3,$C22,$B$5,$B$6,$B$7) -> 0.8262404469 | U22: =Binom(1,0,U$17,$B$3,$C22,$B$5,$B$6,$B$7) -> 0.244159231 | V22: =Binom(1,0,V$17,$B$3,$C22,$B$5,$B$6,$B$7) -> 0.05489927344 | W22: =Binom(1,0,W$17,$B$3,$C22,$B$5,$B$6,$B$7) -> 0.008372817207 | X22: =Binom(1,0,X$17,$B$3,$C22,$B$5,$B$6,$B$7) -> 0.0007217175548 | Y22: =Binom(1,0,Y$17,$B$3,$C22,$B$5,$B$6,$B$7) -> 1.567467866e-05 | Z22: =Binom(1,0,Z$17,$B$3,$C22,$B$5,$B$6,$B$7) -> 4.628576116e-08 | AA22: =Binom(1,0,AA$17,$B$3,$C22,$B$5,$B$6,$B$7) -> 1.51891913e-11 | AB22: =Binom(1,0,AB$17,$B$3,$C22,$B$5,$B$6,$B$7) -> 5.136724919e-16
C23: 1.5 | D23: =Binom(1,0,D$17,$B$3,$C23,$B$5,$B$6,$B$7) -> 92.75435717 | E23: =Binom(1,0,E$17,$B$3,$C23,$B$5,$B$6,$B$7) -> 90.41242431 | F23: =Binom(1,0,F$17,$B$3,$C23,$B$5,$B$6,$B$7) -> 87.62260565 | G23: =Binom(1,0,G$17,$B$3,$C23,$B$5,$B$6,$B$7) -> 84.29924473 | H23: =Binom(1,0,H$17,$B$3,$C23,$B$5,$B$6,$B$7) -> 80.34030361 | I23: =Binom(1,0,I$17,$B$3,$C23,$B$5,$B$6,$B$7) -> 75.62422997 | J23: =Binom(1,0,J$17,$B$3,$C23,$B$5,$B$6,$B$7) -> 70.00622509 | K23: =Binom(1,0,K$17,$B$3,$C23,$B$5,$B$6,$B$7) -> 63.31379803 | L23: =Binom(1,0,L$17,$B$3,$C23,$B$5,$B$6,$B$7) -> 55.34146962 | M23: =Binom(1,0,M$17,$B$3,$C23,$B$5,$B$6,$B$7) -> 45.84446356 | N23: =Binom(1,0,N$17,$B$3,$C23,$B$5,$B$6,$B$7) -> 35.79653101 | O23: =Binom(1,0,O$17,$B$3,$C23,$B$5,$B$6,$B$7) -> 26.27139286 | P23: =Binom(1,0,P$17,$B$3,$C23,$B$5,$B$6,$B$7) -> 17.86864335 | Q23: =Binom(1,0,Q$17,$B$3,$C23,$B$5,$B$6,$B$7) -> 11.04752227 | R23: =Binom(1,0,R$17,$B$3,$C23,$B$5,$B$6,$B$7) -> 6.141628489 | S23: =Binom(1,0,S$17,$B$3,$C23,$B$5,$B$6,$B$7) -> 3.022112432 | T23: =Binom(1,0,T$17,$B$3,$C23,$B$5,$B$6,$B$7) -> 1.279288245 | U23: =Binom(1,0,U$17,$B$3,$C23,$B$5,$B$6,$B$7) -> 0.4572785516 | V23: =Binom(1,0,V$17,$B$3,$C23,$B$5,$B$6,$B$7) -> 0.1324253549 | W23: =Binom(1,0,W$17,$B$3,$C23,$B$5,$B$6,$B$7) -> 0.02956433749 | X23: =Binom(1,0,X$17,$B$3,$C23,$B$5,$B$6,$B$7) -> 0.004577119694 | Y23: =Binom(1,0,Y$17,$B$3,$C23,$B$5,$B$6,$B$7) -> 0.0003786461308 | Z23: =Binom(1,0,Z$17,$B$3,$C23,$B$5,$B$6,$B$7) -> 8.303088972e-06 | AA23: =Binom(1,0,AA$17,$B$3,$C23,$B$5,$B$6,$B$7) -> 3.306220558e-08 | AB23: =Binom(1,0,AB$17,$B$3,$C23,$B$5,$B$6,$B$7) -> 2.094486155e-11
C24: 1.75 | D24: =Binom(1,0,D$17,$B$3,$C24,$B$5,$B$6,$B$7) -> 92.75435717 | E24: =Binom(1,0,E$17,$B$3,$C24,$B$5,$B$6,$B$7) -> 90.41242431 | F24: =Binom(1,0,F$17,$B$3,$C24,$B$5,$B$6,$B$7) -> 87.62260565 | G24: =Binom(1,0,G$17,$B$3,$C24,$B$5,$B$6,$B$7) -> 84.29924473 | H24: =Binom(1,0,H$17,$B$3,$C24,$B$5,$B$6,$B$7) -> 80.34030361 | I24: =Binom(1,0,I$17,$B$3,$C24,$B$5,$B$6,$B$7) -> 75.62422997 | J24: =Binom(1,0,J$17,$B$3,$C24,$B$5,$B$6,$B$7) -> 70.00622509 | K24: =Binom(1,0,K$17,$B$3,$C24,$B$5,$B$6,$B$7) -> 63.31379803 | L24: =Binom(1,0,L$17,$B$3,$C24,$B$5,$B$6,$B$7) -> 55.34146962 | M24: =Binom(1,0,M$17,$B$3,$C24,$B$5,$B$6,$B$7) -> 45.84446356 | N24: =Binom(1,0,N$17,$B$3,$C24,$B$5,$B$6,$B$7) -> 36.19643662 | O24: =Binom(1,0,O$17,$B$3,$C24,$B$5,$B$6,$B$7) -> 27.00928234 | P24: =Binom(1,0,P$17,$B$3,$C24,$B$5,$B$6,$B$7) -> 18.8779673 | Q24: =Binom(1,0,Q$17,$B$3,$C24,$B$5,$B$6,$B$7) -> 12.14642737 | R24: =Binom(1,0,R$17,$B$3,$C24,$B$5,$B$6,$B$7) -> 7.147716903 | S24: =Binom(1,0,S$17,$B$3,$C24,$B$5,$B$6,$B$7) -> 3.795042091 | T24: =Binom(1,0,T$17,$B$3,$C24,$B$5,$B$6,$B$7) -> 1.776763822 | U24: =Binom(1,0,U$17,$B$3,$C24,$B$5,$B$6,$B$7) -> 0.7258196846 | V24: =Binom(1,0,V$17,$B$3,$C24,$B$5,$B$6,$B$7) -> 0.2508350808 | W24: =Binom(1,0,W$17,$B$3,$C24,$B$5,$B$6,$B$7) -> 0.0709984219 | X24: =Binom(1,0,X$17,$B$3,$C24,$B$5,$B$6,$B$7) -> 0.01526669668 | Y24: =Binom(1,0,Y$17,$B$3,$C24,$B$5,$B$6,$B$7) -> 0.00232663975 | Z24: =Binom(1,0,Z$17,$B$3,$C24,$B$5,$B$6,$B$7) -> 0.0001686257893 | AA24: =Binom(1,0,AA$17,$B$3,$C24,$B$5,$B$6,$B$7) -> 3.432185719e-06 | AB24: =Binom(1,0,AB$17,$B$3,$C24,$B$5,$B$6,$B$7) -> 1.563460978e-08
C25: 2 | D25: =Binom(1,0,D$17,$B$3,$C25,$B$5,$B$6,$B$7) -> 92.75435717 | E25: =Binom(1,0,E$17,$B$3,$C25,$B$5,$B$6,$B$7) -> 90.41242431 | F25: =Binom(1,0,F$17,$B$3,$C25,$B$5,$B$6,$B$7) -> 87.62260565 | G25: =Binom(1,0,G$17,$B$3,$C25,$B$5,$B$6,$B$7) -> 84.29924473 | H25: =Binom(1,0,H$17,$B$3,$C25,$B$5,$B$6,$B$7) -> 80.34030361 | I25: =Binom(1,0,I$17,$B$3,$C25,$B$5,$B$6,$B$7) -> 75.62422997 | J25: =Binom(1,0,J$17,$B$3,$C25,$B$5,$B$6,$B$7) -> 70.00622509 | K25: =Binom(1,0,K$17,$B$3,$C25,$B$5,$B$6,$B$7) -> 63.31379803 | L25: =Binom(1,0,L$17,$B$3,$C25,$B$5,$B$6,$B$7) -> 55.34146962 | M25: =Binom(1,0,M$17,$B$3,$C25,$B$5,$B$6,$B$7) -> 45.95515069 | N25: =Binom(1,0,N$17,$B$3,$C25,$B$5,$B$6,$B$7) -> 36.5803553 | O25: =Binom(1,0,O$17,$B$3,$C25,$B$5,$B$6,$B$7) -> 27.69063306 | P25: =Binom(1,0,P$17,$B$3,$C25,$B$5,$B$6,$B$7) -> 19.7889548 | Q25: =Binom(1,0,Q$17,$B$3,$C25,$B$5,$B$6,$B$7) -> 13.14052879 | R25: =Binom(1,0,R$17,$B$3,$C25,$B$5,$B$6,$B$7) -> 8.104114137 | S25: =Binom(1,0,S$17,$B$3,$C25,$B$5,$B$6,$B$7) -> 4.545997089 | T25: =Binom(1,0,T$17,$B$3,$C25,$B$5,$B$6,$B$7) -> 2.302408053 | U25: =Binom(1,0,U$17,$B$3,$C25,$B$5,$B$6,$B$7) -> 1.03985442 | V25: =Binom(1,0,V$17,$B$3,$C25,$B$5,$B$6,$B$7) -> 0.4076862085 | W25: =Binom(1,0,W$17,$B$3,$C25,$B$5,$B$6,$B$7) -> 0.1356135743 | X25: =Binom(1,0,X$17,$B$3,$C25,$B$5,$B$6,$B$7) -> 0.03699484383 | Y25: =Binom(1,0,Y$17,$B$3,$C25,$B$5,$B$6,$B$7) -> 0.007660872973 | Z25: =Binom(1,0,Z$17,$B$3,$C25,$B$5,$B$6,$B$7) -> 0.001076576075 | AA25: =Binom(1,0,AA$17,$B$3,$C25,$B$5,$B$6,$B$7) -> 6.458150743e-05 | AB25: =Binom(1,0,AB$17,$B$3,$C25,$B$5,$B$6,$B$7) -> 1.169147791e-06
C26: 2.25 | D26: =Binom(1,0,D$17,$B$3,$C26,$B$5,$B$6,$B$7) -> 92.75435717 | E26: =Binom(1,0,E$17,$B$3,$C26,$B$5,$B$6,$B$7) -> 90.41242431 | F26: =Binom(1,0,F$17,$B$3,$C26,$B$5,$B$6,$B$7) -> 87.62260565 | G26: =Binom(1,0,G$17,$B$3,$C26,$B$5,$B$6,$B$7) -> 84.29924473 | H26: =Binom(1,0,H$17,$B$3,$C26,$B$5,$B$6,$B$7) -> 80.34030361 | I26: =Binom(1,0,I$17,$B$3,$C26,$B$5,$B$6,$B$7) -> 75.62422997 | J26: =Binom(1,0,J$17,$B$3,$C26,$B$5,$B$6,$B$7) -> 70.00622509 | K26: =Binom(1,0,K$17,$B$3,$C26,$B$5,$B$6,$B$7) -> 63.31379803 | L26: =Binom(1,0,L$17,$B$3,$C26,$B$5,$B$6,$B$7) -> 55.34146962 | M26: =Binom(1,0,M$17,$B$3,$C26,$B$5,$B$6,$B$7) -> 46.08079192 | N26: =Binom(1,0,N$17,$B$3,$C26,$B$5,$B$6,$B$7) -> 36.95668773 | O26: =Binom(1,0,O$17,$B$3,$C26,$B$5,$B$6,$B$7) -> 28.32029236 | P26: =Binom(1,0,P$17,$B$3,$C26,$B$5,$B$6,$B$7) -> 20.61907626 | Q26: =Binom(1,0,Q$17,$B$3,$C26,$B$5,$B$6,$B$7) -> 14.05121731 | R26: =Binom(1,0,R$17,$B$3,$C26,$B$5,$B$6,$B$7) -> 8.994500972 | S26: =Binom(1,0,S$17,$B$3,$C26,$B$5,$B$6,$B$7) -> 5.279292394 | T26: =Binom(1,0,T$17,$B$3,$C26,$B$5,$B$6,$B$7) -> 2.843189862 | U26: =Binom(1,0,U$17,$B$3,$C26,$B$5,$B$6,$B$7) -> 1.383453585 | V26: =Binom(1,0,V$17,$B$3,$C26,$B$5,$B$6,$B$7) -> 0.5983204016 | W26: =Binom(1,0,W$17,$B$3,$C26,$B$5,$B$6,$B$7) -> 0.2256697583 | X26: =Binom(1,0,X$17,$B$3,$C26,$B$5,$B$6,$B$7) -> 0.07246703047 | Y26: =Binom(1,0,Y$17,$B$3,$C26,$B$5,$B$6,$B$7) -> 0.01863769316 | Z26: =Binom(1,0,Z$17,$B$3,$C26,$B$5,$B$6,$B$7) -> 0.003702103797 | AA26: =Binom(1,0,AA$17,$B$3,$C26,$B$5,$B$6,$B$7) -> 0.0004439431816 | AB26: =Binom(1,0,AB$17,$B$3,$C26,$B$5,$B$6,$B$7) -> 2.145988809e-05
C27: 2.5 | D27: =Binom(1,0,D$17,$B$3,$C27,$B$5,$B$6,$B$7) -> 92.75435717 | E27: =Binom(1,0,E$17,$B$3,$C27,$B$5,$B$6,$B$7) -> 90.41242431 | F27: =Binom(1,0,F$17,$B$3,$C27,$B$5,$B$6,$B$7) -> 87.62260565 | G27: =Binom(1,0,G$17,$B$3,$C27,$B$5,$B$6,$B$7) -> 84.29924473 | H27: =Binom(1,0,H$17,$B$3,$C27,$B$5,$B$6,$B$7) -> 80.34030361 | I27: =Binom(1,0,I$17,$B$3,$C27,$B$5,$B$6,$B$7) -> 75.62422997 | J27: =Binom(1,0,J$17,$B$3,$C27,$B$5,$B$6,$B$7) -> 70.00622509 | K27: =Binom(1,0,K$17,$B$3,$C27,$B$5,$B$6,$B$7) -> 63.31379803 | L27: =Binom(1,0,L$17,$B$3,$C27,$B$5,$B$6,$B$7) -> 55.34146962 | M27: =Binom(1,0,M$17,$B$3,$C27,$B$5,$B$6,$B$7) -> 46.22859113 | N27: =Binom(1,0,N$17,$B$3,$C27,$B$5,$B$6,$B$7) -> 37.33086625 | O27: =Binom(1,0,O$17,$B$3,$C27,$B$5,$B$6,$B$7) -> 28.905093 | P27: =Binom(1,0,P$17,$B$3,$C27,$B$5,$B$6,$B$7) -> 21.38428251 | Q27: =Binom(1,0,Q$17,$B$3,$C27,$B$5,$B$6,$B$7) -> 14.90279625 | R27: =Binom(1,0,R$17,$B$3,$C27,$B$5,$B$6,$B$7) -> 9.828915153 | S27: =Binom(1,0,S$17,$B$3,$C27,$B$5,$B$6,$B$7) -> 5.985021053 | T27: =Binom(1,0,T$17,$B$3,$C27,$B$5,$B$6,$B$7) -> 3.399821032 | U27: =Binom(1,0,U$17,$B$3,$C27,$B$5,$B$6,$B$7) -> 1.750972535 | V27: =Binom(1,0,V$17,$B$3,$C27,$B$5,$B$6,$B$7) -> 0.8192626864 | W27: =Binom(1,0,W$17,$B$3,$C27,$B$5,$B$6,$B$7) -> 0.3400775307 | X27: =Binom(1,0,X$17,$B$3,$C27,$B$5,$B$6,$B$7) -> 0.1229275511 | Y27: =Binom(1,0,Y$17,$B$3,$C27,$B$5,$B$6,$B$7) -> 0.03756617698 | Z27: =Binom(1,0,Z$17,$B$3,$C27,$B$5,$B$6,$B$7) -> 0.009176206285 | AA27: =Binom(1,0,AA$17,$B$3,$C27,$B$5,$B$6,$B$7) -> 0.001667808035 | AB27: =Binom(1,0,AB$17,$B$3,$C27,$B$5,$B$6,$B$7) -> 0.0001612581937
C28: 2.75 | D28: =Binom(1,0,D$17,$B$3,$C28,$B$5,$B$6,$B$7) -> 92.75435717 | E28: =Binom(1,0,E$17,$B$3,$C28,$B$5,$B$6,$B$7) -> 90.41242431 | F28: =Binom(1,0,F$17,$B$3,$C28,$B$5,$B$6,$B$7) -> 87.62260565 | G28: =Binom(1,0,G$17,$B$3,$C28,$B$5,$B$6,$B$7) -> 84.29924473 | H28: =Binom(1,0,H$17,$B$3,$C28,$B$5,$B$6,$B$7) -> 80.34030361 | I28: =Binom(1,0,I$17,$B$3,$C28,$B$5,$B$6,$B$7) -> 75.62422997 | J28: =Binom(1,0,J$17,$B$3,$C28,$B$5,$B$6,$B$7) -> 70.00622509 | K28: =Binom(1,0,K$17,$B$3,$C28,$B$5,$B$6,$B$7) -> 63.31379803 | L28: =Binom(1,0,L$17,$B$3,$C28,$B$5,$B$6,$B$7) -> 55.34146962 | M28: =Binom(1,0,M$17,$B$3,$C28,$B$5,$B$6,$B$7) -> 46.38130636 | N28: =Binom(1,0,N$17,$B$3,$C28,$B$5,$B$6,$B$7) -> 37.68752506 | O28: =Binom(1,0,O$17,$B$3,$C28,$B$5,$B$6,$B$7) -> 29.45051875 | P28: =Binom(1,0,P$17,$B$3,$C28,$B$5,$B$6,$B$7) -> 22.09696734 | Q28: =Binom(1,0,Q$17,$B$3,$C28,$B$5,$B$6,$B$7) -> 15.69809139 | R28: =Binom(1,0,R$17,$B$3,$C28,$B$5,$B$6,$B$7) -> 10.60853516 | S28: =Binom(1,0,S$17,$B$3,$C28,$B$5,$B$6,$B$7) -> 6.667235263 | T28: =Binom(1,0,T$17,$B$3,$C28,$B$5,$B$6,$B$7) -> 3.949053905 | U28: =Binom(1,0,U$17,$B$3,$C28,$B$5,$B$6,$B$7) -> 2.13421232 | V28: =Binom(1,0,V$17,$B$3,$C28,$B$5,$B$6,$B$7) -> 1.066611996 | W28: =Binom(1,0,W$17,$B$3,$C28,$B$5,$B$6,$B$7) -> 0.4771002728 | X28: =Binom(1,0,X$17,$B$3,$C28,$B$5,$B$6,$B$7) -> 0.1901581437 | Y28: =Binom(1,0,Y$17,$B$3,$C28,$B$5,$B$6,$B$7) -> 0.06593812198 | Z28: =Binom(1,0,Z$17,$B$3,$C28,$B$5,$B$6,$B$7) -> 0.01887306375 | AA28: =Binom(1,0,AA$17,$B$3,$C28,$B$5,$B$6,$B$7) -> 0.004374404426 | AB28: =Binom(1,0,AB$17,$B$3,$C28,$B$5,$B$6,$B$7) -> 0.0006781008301
C29: 3 | D29: =Binom(1,0,D$17,$B$3,$C29,$B$5,$B$6,$B$7) -> 92.75435717 | E29: =Binom(1,0,E$17,$B$3,$C29,$B$5,$B$6,$B$7) -> 90.41242431 | F29: =Binom(1,0,F$17,$B$3,$C29,$B$5,$B$6,$B$7) -> 87.62260565 | G29: =Binom(1,0,G$17,$B$3,$C29,$B$5,$B$6,$B$7) -> 84.29924473 | H29: =Binom(1,0,H$17,$B$3,$C29,$B$5,$B$6,$B$7) -> 80.34030361 | I29: =Binom(1,0,I$17,$B$3,$C29,$B$5,$B$6,$B$7) -> 75.62422997 | J29: =Binom(1,0,J$17,$B$3,$C29,$B$5,$B$6,$B$7) -> 70.00622509 | K29: =Binom(1,0,K$17,$B$3,$C29,$B$5,$B$6,$B$7) -> 63.31379803 | L29: =Binom(1,0,L$17,$B$3,$C29,$B$5,$B$6,$B$7) -> 55.34146962 | M29: =Binom(1,0,M$17,$B$3,$C29,$B$5,$B$6,$B$7) -> 46.53155283 | N29: =Binom(1,0,N$17,$B$3,$C29,$B$5,$B$6,$B$7) -> 38.02731896 | O29: =Binom(1,0,O$17,$B$3,$C29,$B$5,$B$6,$B$7) -> 29.96103778 | P29: =Binom(1,0,P$17,$B$3,$C29,$B$5,$B$6,$B$7) -> 22.75945559 | Q29: =Binom(1,0,Q$17,$B$3,$C29,$B$5,$B$6,$B$7) -> 16.43739253 | R29: =Binom(1,0,R$17,$B$3,$C29,$B$5,$B$6,$B$7) -> 11.34508586 | S29: =Binom(1,0,S$17,$B$3,$C29,$B$5,$B$6,$B$7) -> 7.336894539 | T29: =Binom(1,0,T$17,$B$3,$C29,$B$5,$B$6,$B$7) -> 4.486965115 | U29: =Binom(1,0,U$17,$B$3,$C29,$B$5,$B$6,$B$7) -> 2.533218517 | V29: =Binom(1,0,V$17,$B$3,$C29,$B$5,$B$6,$B$7) -> 1.330694867 | W29: =Binom(1,0,W$17,$B$3,$C29,$B$5,$B$6,$B$7) -> 0.6348143974 | X29: =Binom(1,0,X$17,$B$3,$C29,$B$5,$B$6,$B$7) -> 0.2735613417 | Y29: =Binom(1,0,Y$17,$B$3,$C29,$B$5,$B$6,$B$7) -> 0.1044710935 | Z29: =Binom(1,0,Z$17,$B$3,$C29,$B$5,$B$6,$B$7) -> 0.03417684369 | AA29: =Binom(1,0,AA$17,$B$3,$C29,$B$5,$B$6,$B$7) -> 0.009275632886 | AB29: =Binom(1,0,AB$17,$B$3,$C29,$B$5,$B$6,$B$7) -> 0.001952517859

Sheet difference
A1: Difference Between American And European
A3: S T | B3: =C3*'European Put'!$N$9 -> 12.24564283 | C3: =D3*'European Put'!$N$9 -> 14.58757569 | D3: =E3*'European Put'!$N$9 -> 17.37739435 | E3: =F3*'European Put'!$N$9 -> 20.70075527 | F3: =G3*'European Put'!$N$9 -> 24.65969639 | G3: =H3*'European Put'!$N$9 -> 29.37577003 | H3: =I3*'European Put'!$N$9 -> 34.99377491 | I3: =J3*'European Put'!$N$9 -> 41.68620197 | J3: =K3*'European Put'!$N$9 -> 49.65853038 | K3: =L3*'European Put'!$N$9 -> 59.15553644 | L3: =M3*'European Put'!$N$9 -> 70.46880897 | M3: =N3*'European Put'!$N$9 -> 83.94570208 | N3: 100 | O3: =N3*'European Put'!$J$9 -> 119.1246217 | P3: =O3*'European Put'!$J$9 -> 141.9067549 | Q3: =P3*'European Put'!$J$9 -> 169.0458848 | R3: =Q3*'European Put'!$J$9 -> 201.3752707 | S3: =R3*'European Put'!$J$9 -> 239.8875294 | T3: =S3*'European Put'!$J$9 -> 285.7651118 | U3: =T3*'European Put'!$J$9 -> 340.4166083 | V3: =U3*'European Put'!$J$9 -> 405.5199967 | W3: =V3*'European Put'!$J$9 -> 483.0741618 | X3: =W3*'European Put'!$J$9 -> 575.4602676 | Y3: =X3*'European Put'!$J$9 -> 685.5148666 | Z3: =Y3*'European Put'!$J$9 -> 816.6169913
A4: 0.25 | B4: ='American Put'!D18-'European Put'!D18 -> 1.226140549 | C4: ='American Put'!E18-'European Put'!E18 -> 1.206911309 | D4: ='American Put'!F18-'European Put'!F18 -> 1.18400455 | E4: ='American Put'!G18-'European Put'!G18 -> 1.156716959 | F4: ='American Put'!H18-'European Put'!H18 -> 0.784554244 | G4: ='American Put'!I18-'European Put'!I18 -> 0.784554244 | H4: ='American Put'!J18-'European Put'!J18 -> 0.784554244 | I4: ='American Put'!K18-'European Put'!K18 -> 0.784554244 | J4: ='American Put'!L18-'European Put'!L18 -> 0.7845542109 | K4: ='American Put'!M18-'European Put'!M18 -> 0.7839267719 | L4: ='American Put'!N18-'European Put'!N18 -> 0.7330458447 | M4: ='American Put'!O18-'European Put'!O18 -> 0.3284958384 | N4: ='American Put'!P18-'European Put'!P18 -> 0.08742001004 | O4: ='American Put'!Q18-'European Put'!Q18 -> 0.009812007059 | P4: ='American Put'!R18-'European Put'!R18 -> 0.000532489992 | Q4: ='American Put'!S18-'European Put'!S18 -> 0 | R4: ='American Put'!T18-'European Put'!T18 -> 0 | S4: ='American Put'!U18-'European Put'!U18 -> 0 | T4: ='American Put'!V18-'European Put'!V18 -> 0 | U4: ='American Put'!W18-'European Put'!W18 -> 0 | V4: ='American Put'!X18-'European Put'!X18 -> 0 | W4: ='American Put'!Y18-'European Put'!Y18 -> 0 | X4: ='American Put'!Z18-'European Put'!Z18 -> 0 | Y4: ='American Put'!AA18-'European Put'!AA18 -> 0 | Z4: ='American Put'!AB18-'European Put'!AB18 -> 0
A5: 0.5 | B5: ='American Put'!D19-'European Put'!D19 -> 1.929395937 | C5: ='American Put'!E19-'European Put'!E19 -> 1.563246342 | D5: ='American Put'!F19-'European Put'!F19 -> 1.563246342 | E5: ='American Put'!G19-'European Put'!G19 -> 1.563246342 | F5: ='American Put'!H19-'European Put'!H19 -> 1.563246342 | G5: ='American Put'!I19-'European Put'!I19 -> 1.563246342 | H5: ='American Put'!J19-'European Put'!J19 -> 1.563246338 | I5: ='American Put'!K19-'European Put'!K19 -> 1.56321662 | J5: ='American Put'!L19-'European Put'!L19 -> 1.560057119 | K5: ='American Put'!M19-'European Put'!M19 -> 1.50245784 | L5: ='American Put'!N19-'European Put'!N19 -> 1.046228941 | M5: ='American Put'!O19-'European Put'!O19 -> 0.4732991465 | N5: ='American Put'!P19-'European Put'!P19 -> 0.1746890809 | O5: ='American Put'!Q19-'European Put'!Q19 -> 0.04470295425 | P5: ='American Put'!R19-'European Put'!R19 -> 0.004765078639 | Q5: ='American Put'!S19-'European Put'!S19 -> 0.0002892632452 | R5: ='American Put'!T19-'European Put'!T19 -> 0 | S5: ='American Put'!U19-'European Put'!U19 -> 0 | T5: ='American Put'!V19-'European Put'!V19 -> 0 | U5: ='American Put'!W19-'European Put'!W19 -> 0 | V5: ='American Put'!X19-'European Put'!X19 -> 0 | W5: ='American Put'!Y19-'European Put'!Y19 -> 0 | X5: ='American Put'!Z19-'European Put'!Z19 -> 0 | Y5: ='American Put'!AA19-'European Put'!AA19 -> 0 | Z5: ='American Put'!AB19-'European Put'!AB19 -> 0
A6: 0.75 | B6: ='American Put'!D20-'European Put'!D20 -> 2.336120095 | C6: ='American Put'!E20-'European Put'!E20 -> 2.336120095 | D6: ='American Put'!F20-'European Put'!F20 -> 2.336120095 | E6: ='American Put'!G20-'European Put'!G20 -> 2.336120095 | F6: ='American Put'!H20-'European Put'!H20 -> 2.336120095 | G6: ='American Put'!I20-'European Put'!I20 -> 2.336119946 | H6: ='American Put'!J20-'European Put'!J20 -> 2.336032132 | I6: ='American Put'!K20-'European Put'!K20 -> 2.332777541 | J6: ='American Put'!L20-'European Put'!L20 -> 2.294479807 | K6: ='American Put'!M20-'European Put'!M20 -> 2.051483696 | L6: ='American Put'!N20-'European Put'!N20 -> 1.251817336 | M6: ='American Put'!O20-'European Put'!O20 -> 0.6226587311 | N6: ='American Put'!P20-'European Put'!P20 -> 0.2684646723 | O6: ='American Put'!Q20-'European Put'!Q20 -> 0.09295873855 | P6: ='American Put'!R20-'European Put'!R20 -> 0.02420317615 | Q6: ='American Put'!S20-'European Put'!S20 -> 0.004132927145 | R6: ='American Put'!T20-'European Put'!T20 -> 0.0003348730095 | S6: ='American Put'!U20-'European Put'!U20 -> 0 | T6: ='American Put'!V20-'European Put'!V20 -> 0 | U6: ='American Put'!W20-'European Put'!W20 -> 0 | V6: ='American Put'!X20-'European Put'!X20 -> 0 | W6: ='American Put'!Y20-'European Put'!Y20 -> 0 | X6: ='American Put'!Z20-'European Put'!Z20 -> 0 | Y6: ='American Put'!AA20-'European Put'!AA20 -> 0 | Z6: ='American Put'!AB20-'European Put'!AB20 -> 0
A7: 1 | B7: ='American Put'!D21-'European Put'!D21 -> 3.103218977 | C7: ='American Put'!E21-'European Put'!E21 -> 3.103218977 | D7: ='American Put'!F21-'European Put'!F21 -> 3.103218977 | E7: ='American Put'!G21-'European Put'!G21 -> 3.103218977 | F7: ='American Put'!H21-'European Put'!H21 -> 3.103218593 | G7: ='American Put'!I21-'European Put'!I21 -> 3.103133169 | H7: ='American Put'!J21-'European Put'!J21 -> 3.100902275 | I7: ='American Put'!K21-'European Put'!K21 -> 3.079210251 | J7: ='American Put'!L21-'European Put'!L21 -> 2.954260473 | K7: ='American Put'!M21-'European Put'!M21 -> 2.450746319 | L7: ='American Put'!N21-'European Put'!N21 -> 1.454030319 | M7: ='American Put'!O21-'European Put'!O21 -> 0.7702471348 | N7: ='American Put'!P21-'European Put'!P21 -> 0.3681847623 | O7: ='American Put'!Q21-'European Put'!Q21 -> 0.1434350761 | P7: ='American Put'!R21-'European Put'!R21 -> 0.04105343033 | Q7: ='American Put'!S21-'European Put'!S21 -> 0.007966648203 | R7: ='American Put'!T21-'European Put'!T21 -> 0.0007618075342 | S7: ='American Put'!U21-'European Put'!U21 -> 0 | T7: ='American Put'!V21-'European Put'!V21 -> 0 | U7: ='American Put'!W21-'European Put'!W21 -> 0 | V7: ='American Put'!X21-'European Put'!X21 -> 0 | W7: ='American Put'!Y21-'European Put'!Y21 -> 0 | X7: ='American Put'!Z21-'European Put'!Z21 -> 0 | Y7: ='American Put'!AA21-'European Put'!AA21 -> 0 | Z7: ='American Put'!AB21-'European Put'!AB21 -> 0
A8: 1.25 | B8: ='American Put'!D22-'European Put'!D22 -> 3.864586139 | C8: ='American Put'!E22-'European Put'!E22 -> 3.864586139 | D8: ='American Put'!F22-'European Put'!F22 -> 3.864586139 | E8: ='American Put'!G22-'European Put'!G22 -> 3.864585783 | F8: ='American Put'!H22-'European Put'!H22 -> 3.864533077 | G8: ='American Put'!I22-'European Put'!I22 -> 3.863265957 | H8: ='American Put'!J22-'European Put'!J22 -> 3.852016813 | I8: ='American Put'!K22-'European Put'!K22 -> 3.78898666 | J8: ='American Put'!L22-'European Put'!L22 -> 3.533901269 | K8: ='American Put'!M22-'European Put'!M22 -> 2.742483125 | L8: ='American Put'!N22-'European Put'!N22 -> 1.626631658 | M8: ='American Put'!O22-'European Put'!O22 -> 0.9096542869 | N8: ='American Put'!P22-'European Put'!P22 -> 0.4714872501 | O8: ='American Put'!Q22-'European Put'!Q22 -> 0.19483609 | P8: ='American Put'!R22-'European Put'!R22 -> 0.06324591886 | Q8: ='American Put'!S22-'European Put'!S22 -> 0.01711354037 | R8: ='American Put'!T22-'European Put'!T22 -> 0.005887053345 | S8: ='American Put'!U22-'European Put'!U22 -> 0.000689923715 | T8: ='American Put'!V22-'European Put'!V22 -> 0 | U8: ='American Put'!W22-'European Put'!W22 -> 0 | V8: ='American Put'!X22-'European Put'!X22 -> 0 | W8: ='American Put'!Y22-'European Put'!Y22 -> 0 | X8: ='American Put'!Z22-'European Put'!Z22 -> 0 | Y8: ='American Put'!AA22-'European Put'!AA22 -> 0 | Z8: ='American Put'!AB22-'European Put'!AB22 -> 0
A9: 1.5 | B9: ='American Put'!D23-'European Put'!D23 -> 4.620264408 | C9: ='American Put'!E23-'European Put'!E23 -> 4.620264407 | D9: ='American Put'!F23-'European Put'!F23 -> 4.620264212 | E9: ='American Put'!G23-'European Put'!G23 -> 4.620239478 | F9: ='American Put'!H23-'European Put'!H23 -> 4.619610149 | G9: ='American Put'!I23-'European Put'!I23 -> 4.614107683 | H9: ='American Put'!J23-'European Put'!J23 -> 4.582606321 | I9: ='American Put'!K23-'European Put'!K23 -> 4.455141462 | J9: ='American Put'!L23-'European Put'!L23 -> 4.04561694 | K9: ='American Put'!M23-'European Put'!M23 -> 2.962310791 | L9: ='American Put'!N23-'European Put'!N23 -> 1.808961762 | M9: ='American Put'!O23-'European Put'!O23 -> 1.045963063 | N9: ='American Put'!P23-'European Put'!P23 -> 0.577465411 | O9: ='American Put'!Q23-'European Put'!Q23 -> 0.2593676344 | P9: ='American Put'!R23-'European Put'!R23 -> 0.09893297495 | Q9: ='American Put'!S23-'European Put'!S23 -> 0.04208430253 | R9: ='American Put'!T23-'European Put'!T23 -> 0.01022210569 | S9: ='American Put'!U23-'European Put'!U23 -> 0.0009804461158 | T9: ='American Put'!V23-'European Put'!V23 -> 0.0002110096089 | U9: ='American Put'!W23-'European Put'!W23 -> 0 | V9: ='American Put'!X23-'European Put'!X23 -> 0 | W9: ='American Put'!Y23-'European Put'!Y23 -> 0 | X9: ='American Put'!Z23-'European Put'!Z23 -> 0 | Y9: ='American Put'!AA23-'European Put'!AA23 -> 0 | Z9: ='American Put'!AB23-'European Put'!AB23 -> 0
A10: 1.75 | B10: ='American Put'!D24-'European Put'!D24 -> 5.370296289 | C10: ='American Put'!E24-'European Put'!E24 -> 5.370296212 | D10: ='American Put'!F24-'European Put'!F24 -> 5.370286749 | E10: ='American Put'!G24-'European Put'!G24 -> 5.370011904 | F10: ='American Put'!H24-'European Put'!H24 -> 5.367384028 | G10: ='American Put'!I24-'European Put'!I24 -> 5.352243773 | H10: ='American Put'!J24-'European Put'!J24 -> 5.288925422 | I10: ='American Put'!K24-'European Put'!K24 -> 5.077495743 | J10: ='American Put'!L24-'European Put'!L24 -> 4.499388928 | K10: ='American Put'!M24-'European Put'!M24 -> 3.136136018 | L10: ='American Put'!N24-'European Put'!N24 -> 2.009828714 | M10: ='American Put'!O24-'European Put'!O24 -> 1.192566452 | N10: ='American Put'!P24-'European Put'!P24 -> 0.6854970079 | O10: ='American Put'!Q24-'European Put'!Q24 -> 0.3245927907 | P10: ='American Put'!R24-'European Put'!R24 -> 0.13777533 | Q10: ='American Put'!S24-'European Put'!S24 -> 0.0636408604 | R10: ='American Put'!T24-'European Put'!T24 -> 0.01470943827 | S10: ='American Put'!U24-'European Put'!U24 -> 0.003880016864 | T10: ='American Put'!V24-'European Put'!V24 -> 0.0009493689243 | U10: ='American Put'!W24-'European Put'!W24 -> 0 | V10: ='American Put'!X24-'European Put'!X24 -> 0 | W10: ='American Put'!Y24-'European Put'!Y24 -> 0 | X10: ='American Put'!Z24-'European Put'!Z24 -> 0 | Y10: ='American Put'!AA24-'European Put'!AA24 -> 0 | Z10: ='American Put'!AB24-'European Put'!AB24 -> 0
A11: 2 | B11: ='American Put'!D25-'European Put'!D25 -> 6.114723949 | C11: ='American Put'!E25-'European Put'!E25 -> 6.114720897 | D11: ='American Put'!F25-'European Put'!F25 -> 6.114615841 | E11: ='American Put'!G25-'European Put'!G25 -> 6.113424276 | F11: ='American Put'!H25-'European Put'!H25 -> 6.10643564 | G11: ='American Put'!I25-'European Put'!I25 -> 6.075067178 | H11: ='American Put'!J25-'European Put'!J25 -> 5.9681968 | I11: ='American Put'!K25-'European Put'!K25 -> 5.660130116 | J11: ='American Put'!L25-'European Put'!L25 -> 4.906790966 | K11: ='American Put'!M25-'European Put'!M25 -> 3.39075174 | L11: ='American Put'!N25-'European Put'!N25 -> 2.201889857 | M11: ='American Put'!O25-'European Put'!O25 -> 1.342693056 | N11: ='American Put'!P25-'European Put'!P25 -> 0.7951302805 | O11: ='American Put'!Q25-'European Put'!Q25 -> 0.3892639503 | P11: ='American Put'!R25-'European Put'!R25 -> 0.1984881129 | Q11: ='American Put'!S25-'European Put'!S25 -> 0.08128183993 | R11: ='American Put'!T25-'European Put'!T25 -> 0.02360786812 | S11: ='American Put'!U25-'European Put'!U25 -> 0.01092282064 | T11: ='American Put'!V25-'European Put'!V25 -> 0.001308833532 | U11: ='American Put'!W25-'European Put'!W25 -> 0.0001635795516 | V11: ='American Put'!X25-'European Put'!X25 -> 0 | W11: ='American Put'!Y25-'European Put'!Y25 -> 0 | X11: ='American Put'!Z25-'European Put'!Z25 -> 0 | Y11: ='American Put'!AA25-'European Put'!AA25 -> 0 | Z11: ='American Put'!AB25-'European Put'!AB25 -> 0
A12: 2.25 | B12: ='American Put'!D26-'European Put'!D26 -> 6.853588482 | C12: ='American Put'!E26-'European Put'!E26 -> 6.853553416 | D12: ='American Put'!F26-'European Put'!F26 -> 6.853056658 | E12: ='American Put'!G26-'European Put'!G26 -> 6.849833478 | F12: ='American Put'!H26-'European Put'!H26 -> 6.834892647 | G12: ='American Put'!I26-'European Put'!I26 -> 6.781084319 | H12: ='American Put'!J26-'European Put'!J26 -> 6.620106598 | I12: ='American Put'!K26-'European Put'!K26 -> 6.207789325 | J12: ='American Put'!L26-'European Put'!L26 -> 5.276802167 | K12: ='American Put'!M26-'European Put'!M26 -> 3.638201836 | L12: ='American Put'!N26-'European Put'!N26 -> 2.398125019 | M12: ='American Put'!O26-'European Put'!O26 -> 1.4930675 | N12: ='American Put'!P26-'European Put'!P26 -> 0.906022839 | O12: ='American Put'!Q26-'European Put'!Q26 -> 0.4572522384 | P12: ='American Put'!R26-'European Put'!R26 -> 0.2578967812 | Q12: ='American Put'!S26-'European Put'!S26 -> 0.1051092517 | R12: ='American Put'!T26-'European Put'!T26 -> 0.03764741355 | S12: ='American Put'!U26-'European Put'!U26 -> 0.01537573725 | T12: ='American Put'!V26-'European Put'!V26 -> 0.00227859859 | U12: ='American Put'!W26-'European Put'!W26 -> 0.001063888942 | V12: ='American Put'!X26-'European Put'!X26 -> 0 | W12: ='American Put'!Y26-'European Put'!Y26 -> 0 | X12: ='American Put'!Z26-'European Put'!Z26 -> 0 | Y12: ='American Put'!AA26-'European Put'!AA26 -> 0 | Z12: ='American Put'!AB26-'European Put'!AB26 -> 0
A13: 2.5 | B13: ='American Put'!D27-'European Put'!D27 -> 7.586923489 | C13: ='American Put'!E27-'European Put'!E27 -> 7.586738451 | D13: ='American Put'!F27-'European Put'!F27 -> 7.585303795 | E13: ='American Put'!G27-'European Put'!G27 -> 7.578452219 | F13: ='American Put'!H27-'European Put'!H27 -> 7.5516673 | G13: ='American Put'!I27-'European Put'!I27 -> 7.468978521 | H13: ='American Put'!J27-'European Put'!J27 -> 7.245709301 | I13: ='American Put'!K27-'European Put'!K27 -> 6.723020751 | J13: ='American Put'!L27-'European Put'!L27 -> 5.617565527 | K13: ='American Put'!M27-'European Put'!M27 -> 3.89492204 | L13: ='American Put'!N27-'European Put'!N27 -> 2.606133504 | M13: ='American Put'!O27-'European Put'!O27 -> 1.643967103 | N13: ='American Put'!P27-'European Put'!P27 -> 1.021054292 | O13: ='American Put'!Q27-'European Put'!Q27 -> 0.5397582733 | P13: ='American Put'!R27-'European Put'!R27 -> 0.31832931 | Q13: ='American Put'!S27-'European Put'!S27 -> 0.1282383443 | R13: ='American Put'!T27-'European Put'!T27 -> 0.06615622988 | S13: ='American Put'!U27-'European Put'!U27 -> 0.0201801349 | T13: ='American Put'!V27-'European Put'!V27 -> 0.006183123994 | U13: ='American Put'!W27-'European Put'!W27 -> 0.001559446073 | V13: ='American Put'!X27-'European Put'!X27 -> 0 | W13: ='American Put'!Y27-'European Put'!Y27 -> 0 | X13: ='American Put'!Z27-'European Put'!Z27 -> 0 | Y13: ='American Put'!AA27-'European Put'!AA27 -> 0 | Z13: ='American Put'!AB27-'European Put'!AB27 -> 0
A14: 2.75 | B14: ='American Put'!D28-'European Put'!D28 -> 8.314735664 | C14: ='American Put'!E28-'European Put'!E28 -> 8.314141519 | D14: ='American Put'!F28-'European Put'!F28 -> 8.310994974 | E14: ='American Put'!G28-'European Put'!G28 -> 8.29822141 | F14: ='American Put'!H28-'European Put'!H28 -> 8.255967018 | G14: ='American Put'!I28-'European Put'!I28 -> 8.138276684 | H14: ='American Put'!J28-'European Put'!J28 -> 7.847028759 | I14: ='American Put'!K28-'European Put'!K28 -> 7.210720669 | J14: ='American Put'!L28-'European Put'!L28 -> 5.935443817 | K14: ='American Put'!M28-'European Put'!M28 -> 4.147302386 | L14: ='American Put'!N28-'European Put'!N28 -> 2.811376195 | M14: ='American Put'!O28-'European Put'!O28 -> 1.79552635 | N14: ='American Put'!P28-'European Put'!P28 -> 1.142680444 | O14: ='American Put'!Q28-'European Put'!Q28 -> 0.6294985845 | P14: ='American Put'!R28-'European Put'!R28 -> 0.3758418255 | Q14: ='American Put'!S28-'European Put'!S28 -> 0.1560242736 | R14: ='American Put'!T28-'European Put'!T28 -> 0.09143834697 | S14: ='American Put'!U28-'European Put'!U28 -> 0.02478677409 | T14: ='American Put'!V28-'European Put'!V28 -> 0.01378537189 | U14: ='American Put'!W28-'European Put'!W28 -> 0.00188660269 | V14: ='American Put'!X28-'European Put'!X28 -> 0.000898918288 | W14: ='American Put'!Y28-'European Put'!Y28 -> 0 | X14: ='American Put'!Z28-'European Put'!Z28 -> 0 | Y14: ='American Put'!AA28-'European Put'!AA28 -> 0 | Z14: ='American Put'!AB28-'European Put'!AB28 -> 0
A15: 3 | B15: ='American Put'!D29-'European Put'!D29 -> 9.036986473 | C15: ='American Put'!E29-'European Put'!E29 -> 9.035589747 | D15: ='American Put'!F29-'European Put'!F29 -> 9.029695605 | E15: ='American Put'!G29-'European Put'!G29 -> 9.008609584 | F15: ='American Put'!H29-'European Put'!H29 -> 8.947288412 | G15: ='American Put'!I29-'European Put'!I29 -> 8.788949699 | H15: ='American Put'!J29-'European Put'!J29 -> 8.426063759 | I15: ='American Put'!K29-'European Put'!K29 -> 7.67376984 | J15: ='American Put'!L29-'European Put'!L29 -> 6.235214682 | K15: ='American Put'!M29-'European Put'!M29 -> 4.391352073 | L15: ='American Put'!N29-'European Put'!N29 -> 3.014595714 | M15: ='American Put'!O29-'European Put'!O29 -> 1.947793489 | N15: ='American Put'!P29-'European Put'!P29 -> 1.26545439 | O15: ='American Put'!Q29-'European Put'!Q29 -> 0.7187643836 | P15: ='American Put'!R29-'European Put'!R29 -> 0.4371501299 | Q15: ='American Put'!S29-'European Put'!S29 -> 0.1996567458 | R15: ='American Put'!T29-'European Put'!T29 -> 0.1127835195 | S15: ='American Put'!U29-'European Put'!U29 -> 0.03554271528 | T15: ='American Put'!V29-'European Put'!V29 -> 0.01916400436 | U15: ='American Put'!W29-'European Put'!W29 -> 0.003058854166 | V15: ='American Put'!X29-'European Put'!X29 -> 0.001623958329 | W15: ='American Put'!Y29-'European Put'!Y29 -> 0 | X15: ='American Put'!Z29-'European Put'!Z29 -> 0 | Y15: ='American Put'!AA29-'European Put'!AA29 -> 0 | Z15: ='American Put'!AB29-'European Put'!AB29 -> 0

Sheet T=0,5
A1: American And European Option Value at T=0.5
